Department family,Entity,Date,Expense type,Expense area,Supplier,Transaction number,Amount
Home Office,UKBA - UK Border Agency,29/12/2010,GRANT,UKBA - UK Border Agency,5 E LTD (G),1881658,"29,166.50"
Home Office,UKBA - UK Border Agency,29/12/2010,GRANT,UKBA - UK Border Agency,LONDON BOROUGH OF SOUTHWARK 1 (G),1881651,"541,873.44"
Home Office,UKBA - UK Border Agency,29/12/2010,GRANT,UKBA - UK Border Agency,LEICESTER CITY COUNCIL 1 (G),1881648,"50,911.33"
Home Office,UKBA - UK Border Agency,29/12/2010,GRANT,UKBA - UK Border Agency,CAMBRIDGESHIRE COUNTY COUNCIL (G),1881646,"947,463.37"
Home Office,UKBA - UK Border Agency,29/12/2010,GRANT,UKBA - UK Border Agency,WAKEFIELD MDC 1 (G),1879141,"317,537.10"
Home Office,UKBA - UK Border Agency,29/12/2010,GRANT,UKBA - UK Border Agency,SURREY COUNTY COUNCIL 1 (G),1879128,"1,240,965.62"
Home Office,UKBA - UK Border Agency,29/12/2010,GRANT,UKBA - UK Border Agency,SOMERSET COUNTY COUNCIL 1 (G),1879123,"64,663.75"
Home Office,UKBA - UK Border Agency,29/12/2010,GRANT,UKBA - UK Border Agency,PORTSMOUTH CITY COUNCIL 2 (G),1879118,"67,335.84"
Home Office,UKBA - UK Border Agency,29/12/2010,GRANT,UKBA - UK Border Agency,HAMPSHIRE COUNTY COUNCIL 1 (G),1879116,"66,672.28"
Home Office,UKBA - UK Border Agency,29/12/2010,GRANT,UKBA - UK Border Agency,LONDON BOROUGH OF HAMMERSMITH & FULHAM 1 (G),1879113,"237,589.88"
Home Office,UKBA - UK Border Agency,29/12/2010,GRANT,UKBA - UK Border Agency,GLASGOW CITY COUNCIL 1 (G),1879111,"1,046,735.04"
Home Office,UKBA - UK Border Agency,29/12/2010,GRANT,UKBA - UK Border Agency,COVENTRY CITY COUNCIL 1 (G),1879106,"143,519.65"
Home Office,UKBA - UK Border Agency,29/12/2010,GRANT,UKBA - UK Border Agency,BRIGHTON & HOVE COUNCIL (G),1879104,"99,228.23"
Home Office,UKBA - UK Border Agency,29/12/2010,GRANT,UKBA - UK Border Agency,BARNSLEY MBC 1 (G),1879100,"44,855.05"
Home Office,UKBA - UK Border Agency,29/12/2010,GRANT,UKBA - UK Border Agency,LONDON BOROUGH OF BARKING & DAGENHAM (G),1879099,"99,732.31"
Home Office,UKBA - UK Border Agency,29/12/2010,GRANT,UKBA - UK Border Agency,LONDON BOROUGH OF HILLINGDON 1 (G),1878957,"37,200.57"
Home Office,UKBA - UK Border Agency,29/12/2010,GRANT,UKBA - UK Border Agency,REFUGEE COUNCIL 1 (G),1877116,"38,071.00"
Home Office,UKBA - UK Border Agency,29/12/2010,GRANT,UKBA - UK Border Agency,REFUGEE COUNCIL 1 (G),1877113,"223,554.00"
Home Office,UKBA - UK Border Agency,29/12/2010,GRANT,UKBA - UK Border Agency,REFUGEE COUNCIL 1 (G),1877111,"41,787.00"
Home Office,UKBA - UK Border Agency,29/12/2010,GRANT,UKBA - UK Border Agency,REFUGEE COUNCIL 1 (G),1877105,"241,472.00"
Home Office,UKBA - UK Border Agency,29/12/2010,GRANT,UKBA - UK Border Agency,REFUGEE COUNCIL 1 (G),1877104,"129,948.00"
Home Office,UKBA - UK Border Agency,29/12/2010,GRANT,UKBA - UK Border Agency,REFUGEE ACTION (G),1877100,"61,816.00"
Home Office,UKBA - UK Border Agency,29/12/2010,GRANT,UKBA - UK Border Agency,REFUGEE ACTION (G),1877097,"25,369.00"
Home Office,UKBA - UK Border Agency,29/12/2010,GRANT,UKBA - UK Border Agency,REFUGEE ACTION (G),1877095,"132,832.00"
Home Office,UKBA - UK Border Agency,29/12/2010,GRANT,UKBA - UK Border Agency,REFUGEE ACTION (G),1877092,"143,635.00"
Home Office,UKBA - UK Border Agency,29/12/2010,GRANT,UKBA - UK Border Agency,REFUGEE ACTION (G),1877091,"104,292.00"
Home Office,UKBA - UK Border Agency,29/12/2010,GRANT,UKBA - UK Border Agency,REFUGEE ACTION (G),1877088,"83,107.00"
Home Office,UKBA - UK Border Agency,29/12/2010,GRANT,UKBA - UK Border Agency,REFUGEE ACTION (G),1877087,"76,128.00"
Home Office,UKBA - UK Border Agency,29/12/2010,GRANT,UKBA - UK Border Agency,REFUGEE ACTION (G),1877085,"60,309.00"
Home Office,UKBA - UK Border Agency,29/12/2010,GRANT,UKBA - UK Border Agency,REFUGEE ACTION (G),1877080,"189,609.00"
Home Office,UKBA - UK Border Agency,29/12/2010,GRANT,UKBA - UK Border Agency,MIGRANT HELPLINE (G),1877079,"79,590.00"
Home Office,UKBA - UK Border Agency,29/12/2010,GRANT,UKBA - UK Border Agency,MIGRANT HELPLINE (G),1877076,"223,566.00"
Home Office,UKBA - UK Border Agency,29/12/2010,GRANT,UKBA - UK Border Agency,NORTHAMPTONSHIRE COUNTY COUNCIL 2 (G),1876998,"242,100.00"
Home Office,UKBA - UK Border Agency,29/12/2010,GRANT,UKBA - UK Border Agency,LEEDS CITY COUNCIL 1 (G),1876997,"167,400.00"
Home Office,UKBA - UK Border Agency,29/12/2010,GRANT,UKBA - UK Border Agency,ROYAL BOROUGH KINGSTON UPON THAMES (G),1876995,"39,900.00"
Home Office,UKBA - UK Border Agency,29/12/2010,GRANT,UKBA - UK Border Agency,KENT COUNTY COUNCIL 1 (G),1876994,"1,065,000.00"
Home Office,UKBA - UK Border Agency,29/12/2010,GRANT,UKBA - UK Border Agency,LONDON BOROUGH OF KENSINGTON & CHELSEA (G),1876992,"103,650.00"
Home Office,UKBA - UK Border Agency,29/12/2010,GRANT,UKBA - UK Border Agency,LONDON BOROUGH OF ISLINGTON (G),1876990,"316,350.00"
Home Office,UKBA - UK Border Agency,29/12/2010,GRANT,UKBA - UK Border Agency,LB OF BRENT CHILDRENS DIRECTORATE (G),1876989,"33,750.00"
Home Office,UKBA - UK Border Agency,29/12/2010,GRANT,UKBA - UK Border Agency,REFUGEE COUNCIL 1 (G),1877117,"103,541.00"
Home Office,UKBA - UK Border Agency,29/12/2010,GRANT,UKBA - UK Border Agency,WELSH REFUGEE COUNCIL 1 (G),1877131,"208,637.00"
Home Office,UKBA - UK Border Agency,29/12/2010,GRANT,UKBA - UK Border Agency,WELSH REFUGEE COUNCIL 1 (G),1877127,"83,083.00"
Home Office,UKBA - UK Border Agency,29/12/2010,GRANT,UKBA - UK Border Agency,SCOTTISH REFUGEE COUNCIL (G),1877126,"256,213.00"
Home Office,UKBA - UK Border Agency,29/12/2010,GRANT,UKBA - UK Border Agency,SCOTTISH REFUGEE COUNCIL (G),1877124,"100,898.00"
Home Office,UKBA - UK Border Agency,29/12/2010,GRANT,UKBA - UK Border Agency,REFUGEE COUNCIL 1 (G),1877123,"130,936.00"
Home Office,UKBA - UK Border Agency,29/12/2010,GRANT,UKBA - UK Border Agency,REFUGEE COUNCIL 1 (G),1877122,"446,369.00"
Home Office,UKBA - UK Border Agency,29/12/2010,GRANT,UKBA - UK Border Agency,REFUGEE COUNCIL 1 (G),1877120,"228,903.00"
Home Office,UKBA - UK Border Agency,24/12/2010,GRANT,UKBA - UK Border Agency,WEST BERKSHIRE DISTRICT COUNCIL (LA) (G),1875593,"295,305.72"
Home Office,UKBA - UK Border Agency,24/12/2010,GRANT,UKBA - UK Border Agency,WAKEFIELD MDC 1 (G),1875592,"217,155.42"
Home Office,UKBA - UK Border Agency,24/12/2010,GRANT,UKBA - UK Border Agency,CITY OF STOKE ON TRENT (G),1875591,"47,849.49"
Home Office,UKBA - UK Border Agency,24/12/2010,GRANT,UKBA - UK Border Agency,LONDON BOROUGH OF REDBRIDGE 1 (G),1875590,"309,693.18"
Home Office,UKBA - UK Border Agency,24/12/2010,GRANT,UKBA - UK Border Agency,PORTSMOUTH CITY COUNCIL 2 (G),1875589,"211,184.82"
Home Office,UKBA - UK Border Agency,24/12/2010,GRANT,UKBA - UK Border Agency,NOTTINGHAMSHIRE COUNTY COUNCIL 2 (G),1875587,"76,898.88"
Home Office,UKBA - UK Border Agency,24/12/2010,GRANT,UKBA - UK Border Agency,NOTTINGHAM CITY COUNCIL (G),1875586,"383,415.57"
Home Office,UKBA - UK Border Agency,24/12/2010,GRANT,UKBA - UK Border Agency,LONDON BOROUGH OF NEWHAM (G),1875585,"230,821.44"
Home Office,UKBA - UK Border Agency,24/12/2010,GRANT,UKBA - UK Border Agency,NEWCASTLE CITY COUNCIL (G),1875584,"260,291.40"
Home Office,UKBA - UK Border Agency,24/12/2010,GRANT,UKBA - UK Border Agency,HERTFORDSHIRE COUNTY COUNCIL 1 (G),1875583,"946,808.67"
Home Office,UKBA - UK Border Agency,24/12/2010,GRANT,UKBA - UK Border Agency,LONDON BOROUGH OF HAMMERSMITH & FULHAM 1 (G),1875582,"51,877.40"
Home Office,UKBA - UK Border Agency,24/12/2010,GRANT,UKBA - UK Border Agency,GLASGOW CITY COUNCIL 1 (G),1875580,"533,869.80"
Home Office,UKBA - UK Border Agency,24/12/2010,GRANT,UKBA - UK Border Agency,LONDON BOROUGH OF ENFIELD 1 (G),1875578,"74,058.48"
Home Office,UKBA - UK Border Agency,24/12/2010,GRANT,UKBA - UK Border Agency,LONDON BOROUGH OF EALING 1 (G),1875577,"320,366.90"
Home Office,UKBA - UK Border Agency,24/12/2010,GRANT,UKBA - UK Border Agency,LONDON BOROUGH OF CAMDEN 1 (G),1875573,"359,602.71"
Home Office,UKBA - UK Border Agency,24/12/2010,GRANT,UKBA - UK Border Agency,BURY MBC (G),1875571,"164,226.39"
Home Office,UKBA - UK Border Agency,24/12/2010,GRANT,UKBA - UK Border Agency,LONDON BOROUGH OF BROMLEY (G),1875569,"71,706.00"
Home Office,UKBA - UK Border Agency,24/12/2010,GRANT,UKBA - UK Border Agency,BRISTOL CITY COUNCIL 1 (G),1875567,"52,528.53"
Home Office,UKBA - UK Border Agency,23/12/2010,GRANT,UKBA - UK Border Agency,REFUGEE ACTION (G),1868443,"348,015.00"
Home Office,UKBA - UK Border Agency,22/12/2010,GRANT,UKBA - UK Border Agency,LONDON BOROUGH TOWER HAMLETS (G),1874155,"77,100.00"
Home Office,UKBA - UK Border Agency,22/12/2010,GRANT,UKBA - UK Border Agency,LONDON BOROUGH OF CROYDON 1 (G),1874152,"2,047,650.00"
Home Office,UKBA - UK Border Agency,22/12/2010,GRANT,UKBA - UK Border Agency,WOLVERHAMPTON CITY COUNCIL 1 (G),1874018,"246,303.55"
Home Office,UKBA - UK Border Agency,22/12/2010,GRANT,UKBA - UK Border Agency,SUFFOLK COUNTY COUNCIL (G),1874016,"736,453.82"
Home Office,UKBA - UK Border Agency,22/12/2010,GRANT,UKBA - UK Border Agency,RUTLAND COUNTY COUNCIL DC (G),1874013,"26,598.54"
Home Office,UKBA - UK Border Agency,22/12/2010,GRANT,UKBA - UK Border Agency,LONDON BOROUGH OF NEWHAM (G),1874011,"165,278.70"
Home Office,UKBA - UK Border Agency,22/12/2010,GRANT,UKBA - UK Border Agency,LONDON BOROUGH OF MERTON 2 (G),1874010,"65,583.82"
Home Office,UKBA - UK Border Agency,22/12/2010,GRANT,UKBA - UK Border Agency,ROYAL BOROUGH KINGSTON UPON THAMES (G),1874008,"40,746.95"
Home Office,UKBA - UK Border Agency,22/12/2010,GRANT,UKBA - UK Border Agency,LONDON BOROUGH OF HOUNSLOW 1 (G),1874007,"432,053.93"
Home Office,UKBA - UK Border Agency,22/12/2010,GRANT,UKBA - UK Border Agency,LONDON BOROUGH OF ENFIELD 1 (G),1874006,"31,114.61"
Home Office,UKBA - UK Border Agency,22/12/2010,GRANT,UKBA - UK Border Agency,BRADFORD COUNCIL(G),1874002,"79,881.31"
Home Office,UKBA - UK Border Agency,22/12/2010,GRANT,UKBA - UK Border Agency,BLACKBURN WITH DARWEN BOROUGH COUNCIL (G),1873999,"33,023.60"
Home Office,UKBA - UK Border Agency,22/12/2010,GRANT,UKBA - UK Border Agency,WANDSWORTH BOROUGH COUNCIL (G),1878961,"25,800.75"
Home Office,UKBA - UK Border Agency,22/12/2010,GRANT,UKBA - UK Border Agency,NOTTINGHAM TRAINING AND ENTERPRISES (G),1878184,"37,843.92"
Home Office,UKBA - UK Border Agency,22/12/2010,GRANT,UKBA - UK Border Agency,EAST LONDON ADVANCED TECHNOLOGY TRAINING (ELATT) (G),1878173,"26,250.00"
Home Office,UKBA - UK Border Agency,22/12/2010,GRANT,UKBA - UK Border Agency,BURNLEY TELEMATICS & TELEWORKING CENTRE LTD (G),1878016,"32,500.00"
Home Office,UKBA - UK Border Agency,22/12/2010,GRANT,UKBA - UK Border Agency,POWYS COUNTY COUNCIL 1 (G),1869838,"44,966.28"
Home Office,UKBA - UK Border Agency,22/12/2010,GRANT,UKBA - UK Border Agency,LONDON BOROUGH OF KENSINGTON & CHELSEA (G),1869832,"632,114.74"
Home Office,UKBA - UK Border Agency,22/12/2010,GRANT,UKBA - UK Border Agency,DONCASTER MBC 1 (G),1869825,"98,942.63"
Home Office,UKBA - UK Border Agency,15/12/2010,GRANT,UKBA - UK Border Agency,OISC (G),1868462,"339,750.00"
Home Office,UKBA - UK Border Agency,15/12/2010,GRANT,UKBA - UK Border Agency,WESTMINSTER CITY COUNCIL (G),1868327,"93,750.00"
Home Office,UKBA - UK Border Agency,15/12/2010,GRANT,UKBA - UK Border Agency,LONDON BOROUGH OF RICHMOND UPON THAMES (G),1868322,"42,600.00"
Home Office,UKBA - UK Border Agency,15/12/2010,GRANT,UKBA - UK Border Agency,LONDON BOROUGH OF LAMBETH 1 (G),1868318,"326,100.00"
Home Office,UKBA - UK Border Agency,15/12/2010,GRANT,UKBA - UK Border Agency,DERBYSHIRE COUNTY COUNCIL 1 (G),1868299,"47,645.16"
Home Office,UKBA - UK Border Agency,15/12/2010,GRANT,UKBA - UK Border Agency,BOURNEMOUTH BOROUGH COUNCIL 1 (G),1868294,"56,682.00"
Home Office,UKBA - UK Border Agency,15/12/2010,GRANT,UKBA - UK Border Agency,BARNSLEY MBC 1 (G),1868290,"104,942.70"
Home Office,UKBA - UK Border Agency,15/12/2010,GRANT,UKBA - UK Border Agency,WORCESTERSHIRE COUNTY COUNCIL 1 (G),1867392,"614,617.84"
Home Office,UKBA - UK Border Agency,15/12/2010,GRANT,UKBA - UK Border Agency,WARWICKSHIRE COUNTY COUNCIL 1 (G),1867386,"99,269.13"
Home Office,UKBA - UK Border Agency,15/12/2010,GRANT,UKBA - UK Border Agency,STAFFORDSHIRE COUNTY COUNCIL 1 (G),1867381,"99,431.72"
Home Office,UKBA - UK Border Agency,15/12/2010,GRANT,UKBA - UK Border Agency,OXFORDSHIRE COUNTY COUNCIL 1 (G),1867380,"634,429.86"
Home Office,UKBA - UK Border Agency,15/12/2010,GRANT,UKBA - UK Border Agency,NORTH YORKSHIRE COUNTY COUNCIL (G),1867379,"298,718.60"
Home Office,UKBA - UK Border Agency,15/12/2010,GRANT,UKBA - UK Border Agency,NORFOLK COUNTY COUNCIL 1 (G),1867377,"144,227.68"
Home Office,UKBA - UK Border Agency,15/12/2010,GRANT,UKBA - UK Border Agency,LONDON BOROUGH OF LEWISHAM 1 (G),1867374,"369,501.02"
Home Office,UKBA - UK Border Agency,15/12/2010,GRANT,UKBA - UK Border Agency,LONDON BOROUGH OF ISLINGTON (G),1867369,"579,774.57"
Home Office,UKBA - UK Border Agency,15/12/2010,GRANT,UKBA - UK Border Agency,HALIFAX OPPORTUNITIES TRUST (G),1874205,"53,046.00"
Home Office,UKBA - UK Border Agency,15/12/2010,GRANT,UKBA - UK Border Agency,WILTSHIRE COUNTY COUNCIL 1 (G),1869739,"64,993.09"
Home Office,UKBA - UK Border Agency,15/12/2010,GRANT,UKBA - UK Border Agency,SHEFFIELD CITY COUNCIL 1 (G),1869734,"242,744.87"
Home Office,UKBA - UK Border Agency,15/12/2010,GRANT,UKBA - UK Border Agency,NORTH SOMERSET DISTRICT COUNCIL 1 (G),1869731,"31,625.15"
Home Office,UKBA - UK Border Agency,15/12/2010,GRANT,UKBA - UK Border Agency,MONMOUTHSHIRE COUNTY COUNCIL 1 (G),1869728,"225,613.65"
Home Office,UKBA - UK Border Agency,15/12/2010,GRANT,UKBA - UK Border Agency,LONDON BOROUGH OF HARROW 1 (G),1869727,"267,748.39"
Home Office,UKBA - UK Border Agency,15/12/2010,GRANT,UKBA - UK Border Agency,LONDON BOROUGH OF EALING 1 (G),1869724,"94,198.01"
Home Office,UKBA - UK Border Agency,15/12/2010,GRANT,UKBA - UK Border Agency,BUCKINGHAMSHIRE COUNTY COUNCIL 1 (G),1869720,"34,003.91"
Home Office,UKBA - UK Border Agency,15/12/2010,GRANT,UKBA - UK Border Agency,LONDON BOROUGH OF BARNET 1 (G),1869717,"159,415.25"
Home Office,UKBA - UK Border Agency,15/12/2010,GRANT,UKBA - UK Border Agency,NOTTINGHAM CITY COUNCIL (G),1869702,"398,871.66"
Home Office,UKBA - UK Border Agency,15/12/2010,GRANT,UKBA - UK Border Agency,GLOUCESTERSHIRE COUNTY COUNCIL 1 (G),1869700,"288,903.13"
Home Office,UKBA - UK Border Agency,14/12/2010,GRANT,UKBA - UK Border Agency,NORFOLK COUNTY COUNCIL 1 (G),1868422,"69,052.60"
Home Office,UKBA - UK Border Agency,14/12/2010,GRANT,UKBA - UK Border Agency,NORFOLK COUNTY COUNCIL 1 (G),1868345,"28,067.45"
Home Office,UKBA - UK Border Agency,13/12/2010,GRANT,UKBA - UK Border Agency,HORTON HOUSING ASSOCIATION (G),1868444,"81,021.61"
Home Office,UKBA - UK Border Agency,13/12/2010,GRANT,UKBA - UK Border Agency,HORTON HOUSING ASSOCIATION (G),1868336,"93,251.31"
Home Office,UKBA - UK Border Agency,10/12/2010,GRANT,UKBA - UK Border Agency,LATIN AMERICAN WOMEN'S RIGHTS SERVICE (G),1870770,"34,923.00"
Home Office,UKBA - UK Border Agency,10/12/2010,GRANT,UKBA - UK Border Agency,BRADFORD COLLEGE (G),1870767,"68,428.02"
Home Office,UKBA - UK Border Agency,10/12/2010,GRANT,UKBA - UK Border Agency,THE INTERNATIONAL ORG FOR MIGRATION (G),1870803,"2,545,396.26"
Home Office,UKBA - UK Border Agency,10/12/2010,GRANT,UKBA - UK Border Agency,ENFIELD COUNCIL (G),1870799,"47,694.00"
Home Office,UKBA - UK Border Agency,10/12/2010,GRANT,UKBA - UK Border Agency,ROYAL BOROUGH KINGSTON UPON THAMES (G),1870793,"46,456.62"
Home Office,UKBA - UK Border Agency,09/12/2010,GRANT,UKBA - UK Border Agency,REFUGEE ACTION (G),1868441,"202,965.00"
Home Office,UKBA - UK Border Agency,08/12/2010,GRANT,UKBA - UK Border Agency,BRITISH REFUGEE COUNCIL 2 (G),1868437,"70,372.67"
Home Office,UKBA - UK Border Agency,08/12/2010,GRANT,UKBA - UK Border Agency,BRITISH REFUGEE COUNCIL 2 (G),1868435,"74,854.52"
Home Office,UKBA - UK Border Agency,08/12/2010,GRANT,UKBA - UK Border Agency,BRITISH REFUGEE COUNCIL 2 (G),1868433,"85,231.50"
Home Office,UKBA - UK Border Agency,08/12/2010,GRANT,UKBA - UK Border Agency,BRITISH REFUGEE COUNCIL 2 (G),1868432,"84,779.50"
Home Office,UKBA - UK Border Agency,08/12/2010,GRANT,UKBA - UK Border Agency,SERCO (G),1868430,"44,057.26"
Home Office,UKBA - UK Border Agency,07/12/2010,GRANT,UKBA - UK Border Agency,LONDON BOROUGH OF LAMBETH 1 (G),1868223,"231,318.45"
Home Office,UKBA - UK Border Agency,07/12/2010,GRANT,UKBA - UK Border Agency,PEACEMAKER (G),1868209,"45,000.00"
Home Office,UKBA - UK Border Agency,07/12/2010,GRANT,UKBA - UK Border Agency,THE NATIONAL INSTITUTE OF ADULT CONTINUING EDUCATION,1867473,"47,933.14"
Home Office,UKBA - UK Border Agency,07/12/2010,GRANT,UKBA - UK Border Agency,THE NATIONAL INSTITUTE OF ADULT CONTINUING EDUCATION,1867456,"53,697.85"
Home Office,UKBA - UK Border Agency,07/12/2010,GRANT,UKBA - UK Border Agency,INTERNATIONAL ORGANISATION FOR MIGRATION FRANCE (G),1867406,"89,809.12"
Home Office,UKBA - UK Border Agency,07/12/2010,GRANT,UKBA - UK Border Agency,PETERBOROUGH CITY COUNCIL (G),1867138,"46,783.59"
Home Office,UKBA - UK Border Agency,07/12/2010,GRANT,UKBA - UK Border Agency,MONMOUTHSHIRE COUNTY COUNCIL 1 (G),1867136,"113,819.73"
Home Office,UKBA - UK Border Agency,07/12/2010,GRANT,UKBA - UK Border Agency,LINCOLNSHIRE COUNTY COUNCIL 1 (G),1867135,"212,039.16"
Home Office,UKBA - UK Border Agency,07/12/2010,GRANT,UKBA - UK Border Agency,EAST SUSSEX COUNTY COUNCIL 1 (G),1867134,"169,980.18"
Home Office,UKBA - UK Border Agency,07/12/2010,GRANT,UKBA - UK Border Agency,COVENTRY CITY COUNCIL 1 (G),1867133,"165,038.13"
Home Office,UKBA - UK Border Agency,07/12/2010,GRANT,UKBA - UK Border Agency,CAMBRIDGESHIRE COUNTY COUNCIL (G),1867131,"61,044.75"
Home Office,UKBA - UK Border Agency,07/12/2010,GRANT,UKBA - UK Border Agency,BRACKNELL FOREST BC (G),1867129,"51,860.10"
Home Office,UKBA - UK Border Agency,07/12/2010,GRANT,UKBA - UK Border Agency,WEST SUSSEX COUNTY COUNCIL 1 (G),1867116,"202,800.00"
Home Office,UKBA - UK Border Agency,07/12/2010,GRANT,UKBA - UK Border Agency,SOLIHULL MBC,1867114,"481,200.00"
Home Office,UKBA - UK Border Agency,07/12/2010,GRANT,UKBA - UK Border Agency,LONDON BOROUGH OF HARINGEY 1 (G),1867113,"137,100.00"
Home Office,UKBA - UK Border Agency,07/12/2010,GRANT,UKBA - UK Border Agency,LONDON BOROUGH OF BARNET 1 (G),1867112,"47,250.00"
Home Office,UKBA - UK Border Agency,06/12/2010,GRANT,UKBA - UK Border Agency,JAGONARI WOMENS EDUCATIONAL RESOURCE,1866618,"53,485.43"
Home Office,Home Office,15/12/2010,GRANT,Home Office,NSPCC 1 (G),1874241,"26,512.00"
Home Office,Home Office,15/12/2010,GRANT,Home Office,ISA (G),1874240,"1,191,813.00"
Home Office,Home Office,07/12/2010,GRANT,Home Office,SECURITY INDUSTRY AUTHORITY 1 (G),1868155,"43,455.00"
Home Office,Home Office,24/12/2010,GRANT,OSCT - Office of Security & Counter Terrorism,METROPOLITAN POLICE AUTHORITY  (G),1878975,"302,590.00"
Home Office,Home Office,24/12/2010,GRANT,OSCT - Office of Security & Counter Terrorism,METROPOLITAN POLICE AUTHORITY  (G),1878974,"77,650.00"
Home Office,Home Office,24/12/2010,GRANT,OSCT - Office of Security & Counter Terrorism,LEICESTERSHIRE POLICE AUTHORITY (G),1878971,"28,012.00"
Home Office,Home Office,24/12/2010,GRANT,OSCT - Office of Security & Counter Terrorism,DERBYSHIRE POLICE AUTHORITY 1 (G),1878959,"37,156.00"
Home Office,Home Office,23/12/2010,GRANT,OSCT - Office of Security & Counter Terrorism,LANCASHIRE POLICE AUTHORITY 1 (G),1877500,"63,702.00"
Home Office,Home Office,23/12/2010,GRANT,OSCT - Office of Security & Counter Terrorism,SOUTH YORKSHIRE POLICE AUTHORITY 1 (G),1877488,"43,062.00"
Home Office,Home Office,23/12/2010,GRANT,OSCT - Office of Security & Counter Terrorism,WEST MIDLANDS POLICE AUTHORITY 1 (G),1877477,"97,878.00"
Home Office,Home Office,23/12/2010,GRANT,OSCT - Office of Security & Counter Terrorism,THAMES VALLEY POLICE (G),1877465,"31,450.00"
Home Office,Home Office,23/12/2010,GRANT,OSCT - Office of Security & Counter Terrorism,SOUTH WALES POLICE AUTHORITY 1 (G),1877458,"29,769.00"
Home Office,Home Office,23/12/2010,GRANT,OSCT - Office of Security & Counter Terrorism,GREATER MANCHESTER POLICE AUTHORITY (G),1877453,"97,061.00"
Home Office,Home Office,23/12/2010,GRANT,OSCT - Office of Security & Counter Terrorism,NOTTINGHAMSHIRE POLICE AUTHORITY 2 (G),1877443,"28,820.00"
Home Office,Home Office,23/12/2010,GRANT,OSCT - Office of Security & Counter Terrorism,WEST YORKSHIRE POLICE (G),1877432,"155,252.00"
Home Office,Home Office,23/12/2010,GRANT,OSCT - Office of Security & Counter Terrorism,METROPOLITAN POLICE AUTHORITY  (G),1877018,"124,956.00"
Home Office,Home Office,17/12/2010,GRANT,OSCT - Office of Security & Counter Terrorism,NORTH HERTFORDSHIRE COLLEGE (G),1876448,"81,160.00"
Home Office,Home Office,17/12/2010,GRANT,OSCT - Office of Security & Counter Terrorism,ESSEX POLICE AUTHORITY (G),1876447,"99,260.00"
Home Office,Home Office,01/12/2010,GRANT,OSCT - Office of Security & Counter Terrorism,NPIA (G),1849158,"2,522,897.00"
Home Office,UKBA - UK Border Agency,29/12/2010,Other Gov't Dept. -Request For Transfer,UKBA - UK Border Agency,DEPARTMENT OF WORK & PENSIONS (G),1868537,"41,970.00"
Home Office,UKBA - UK Border Agency,01/12/2010,Other Gov't Dept. -Request For Transfer,UKBA - UK Border Agency,TREASURY SOLICITOR CLIENT MONIES,1869860,"172,291.57"
Home Office,UKBA - UK Border Agency,29/12/2010,Other Gov't Dept. -Request For Transfer,UKBA - UK Border Agency,DEPARTMENT OF WORK & PENSIONS (G),1868532,"25,182.00"
Home Office,UKBA - UK Border Agency,29/12/2010,Other Gov't Dept. -Request For Transfer,UKBA - UK Border Agency,DEPARTMENT OF WORK & PENSIONS (G),1868528,"92,334.00"
Home Office,UKBA - UK Border Agency,23/12/2010,Other Gov't Dept. -Request For Transfer,UKBA - UK Border Agency,FCO SERVICES,1882967,"28,941.33"
Home Office,UKBA - UK Border Agency,21/12/2010,Other Gov't Dept. -Request For Transfer,UKBA - UK Border Agency,FCO SERVICES,1882088,"31,590.13"
Home Office,UKBA - UK Border Agency,21/12/2010,Other Gov't Dept. -Request For Transfer,UKBA - UK Border Agency,TREASURY SOLICITOR CLIENT MONIES,1880397,"320,500.00"
Home Office,UKBA - UK Border Agency,21/12/2010,Other Gov't Dept. -Request For Transfer,UKBA - UK Border Agency,TREASURY SOLICITOR CLIENT MONIES,1880389,"407,446.83"
Home Office,UKBA - UK Border Agency,15/12/2010,Other Gov't Dept. -Request For Transfer,UKBA - UK Border Agency,SECURITY SERVICES GROUP,1874959,"82,985.57"
Home Office,UKBA - UK Border Agency,14/12/2010,Other Gov't Dept. -Request For Transfer,UKBA - UK Border Agency,TREASURY SOLICITOR CLIENT MONIES,1877099,"198,146.25"
Home Office,UKBA - UK Border Agency,07/12/2010,Other Gov't Dept. -Request For Transfer,UKBA - UK Border Agency,TREASURY SOLICITORS OFFICE,1875694,"2,017,605.59"
Home Office,UKBA - UK Border Agency,07/12/2010,Other Gov't Dept. -Request For Transfer,UKBA - UK Border Agency,TREASURY SOLICITORS OFFICE,1875642,"33,953.73"
Home Office,UKBA - UK Border Agency,07/12/2010,Other Gov't Dept. -Request For Transfer,UKBA - UK Border Agency,TREASURY SOLICITORS OFFICE,1875639,"56,265.52"
Home Office,UKBA - UK Border Agency,07/12/2010,Other Gov't Dept. -Request For Transfer,UKBA - UK Border Agency,TREASURY SOLICITOR CLIENT MONIES,1870625,"160,000.71"
Home Office,UKBA - UK Border Agency,06/12/2010,Other Gov't Dept. -Request For Transfer,UKBA - UK Border Agency,DEPARTMENT FOR WORK AND PENSIONS ACCOUNTING SHARED SERVICES,1875096,"61,603.00"
Home Office,UKBA - UK Border Agency,02/12/2010,Other Gov't Dept. -Request For Transfer,UKBA - UK Border Agency,FCO SERVICES,1867085,"222,842.43"
Home Office,UKBA - UK Border Agency,02/12/2010,Other Gov't Dept. -Request For Transfer,UKBA - UK Border Agency,DRIVER AND VEHICLE LICENSING AGENCY (DVLA),1870465,"107,570.03"
Home Office,UKBA - UK Border Agency,02/12/2010,Other Gov't Dept. -Request For Transfer,UKBA - UK Border Agency,DRIVER AND VEHICLE LICENSING AGENCY (DVLA),1870453,"46,823.34"
Home Office,UKBA - UK Border Agency,02/12/2010,Other Gov't Dept. -Request For Transfer,UKBA - UK Border Agency,DRIVER AND VEHICLE LICENSING AGENCY (DVLA),1870452,"63,582.72"
Home Office,UKBA - UK Border Agency,01/12/2010,Other Gov't Dept. -Request For Transfer,UKBA - UK Border Agency,TREASURY SOLICITOR CLIENT MONIES,1870626,"47,667.69"
Home Office,UKBA - UK Border Agency,29/12/2010,Other Gov't Dept. -Request For Transfer,UKBA - UK Border Agency,DEPARTMENT OF WORK & PENSIONS (G),1868535,"58,758.00"
Home Office,Home Office,23/12/2010,Other Gov't Dept. -Request For Transfer,Group HR,FCO SERVICES,1882969,"33,297.15"
Home Office,Home Office,08/12/2010,Other Gov't Dept. -Request For Transfer,Group HR,CABINET OFFICE RM SHARED SERVICES,1872700,"55,812.50"
Home Office,Home Office,03/12/2010,Other Gov't Dept. -Request For Transfer,Group HR,DWP (SHARED SERVICES),1868288,"152,093.18"
Home Office,Home Office,29/12/2010,Other Gov't Dept. -Request For Transfer,CPG - Crime & Policing Group,SHEFFIELD PRIMARY CARE TRUST (G),1879016,"1,669,075.11"
Home Office,Home Office,29/12/2010,Other Gov't Dept. -Request For Transfer,CPG - Crime & Policing Group,OXFORD CITY PCT (G),1879012,"287,022.88"
Home Office,Home Office,29/12/2010,Other Gov't Dept. -Request For Transfer,CPG - Crime & Policing Group,LINCOLNSHIRE PCT (G),1879011,"135,269.01"
Home Office,Home Office,29/12/2010,Other Gov't Dept. -Request For Transfer,CPG - Crime & Policing Group,KIRKLEES PCT (G),1879008,"545,599.34"
Home Office,Home Office,29/12/2010,Other Gov't Dept. -Request For Transfer,CPG - Crime & Policing Group,DONCASTER PCT (G),1879001,"882,980.37"
Home Office,Home Office,29/12/2010,Other Gov't Dept. -Request For Transfer,CPG - Crime & Policing Group,CORN &ISLES OF SCILLY PRIMARY CARE TRUST (G),1878997,"77,648.77"
Home Office,Home Office,23/12/2010,Other Gov't Dept. -Request For Transfer,CPG - Crime & Policing Group,MARINE MANAGEMENT ORGANISATION (G),1875632,"63,411.56"
Home Office,Home Office,23/12/2010,Other Gov't Dept. -Request For Transfer,CPG - Crime & Policing Group,DEPARTMENT OF WORK & PENSIONS (G),1875631,"253,802.92"
Home Office,Home Office,23/12/2010,Other Gov't Dept. -Request For Transfer,CPG - Crime & Policing Group,SERIOUS FRAUD OFFICE (G),1875629,"29,894.44"
Home Office,Home Office,23/12/2010,Other Gov't Dept. -Request For Transfer,CPG - Crime & Policing Group,HM REVENUE & CUSTOMS (G),1875628,"1,861,376.10"
Home Office,Home Office,23/12/2010,Other Gov't Dept. -Request For Transfer,CPG - Crime & Policing Group,DEPARTMENT FOR ENVIRONMENT FOOD AND RURAL AFFAIRS(DEFRA),1875627,"42,187.50"
Home Office,Home Office,23/12/2010,Other Gov't Dept. -Request For Transfer,CPG - Crime & Policing Group,CROWN PROSECUTION SERVICE (G),1875626,"3,899,122.29"
Home Office,Home Office,23/12/2010,Other Gov't Dept. -Request For Transfer,CPG - Crime & Policing Group,MINISTRY OF JUSTICE,1881582,"2,945,613.54"
Home Office,Home Office,17/12/2010,Other Gov't Dept. -Request For Transfer,CPG - Crime & Policing Group,HM REVENUE & CUSTOMS (G),1875617,"297,238.00"
Home Office,Home Office,10/12/2010,Other Gov't Dept. -Request For Transfer,CPG - Crime & Policing Group,PLYMOUTH TEACHING PCT (G),1869773,"70,069.52"
Home Office,Home Office,10/12/2010,Other Gov't Dept. -Request For Transfer,CPG - Crime & Policing Group,NORTH YORKSHIRE & YORK PCT (G),1869770,"92,367.79"
Home Office,Home Office,10/12/2010,Other Gov't Dept. -Request For Transfer,CPG - Crime & Policing Group,DEVON PRIMARY CARE TRUST (G),1869762,"82,660.08"
Home Office,Home Office,10/12/2010,Other Gov't Dept. -Request For Transfer,CPG - Crime & Policing Group,HEART OF BIRMINGHAM TEACHING PCT (G),1869755,"1,341,636.89"
Home Office,Home Office,10/12/2010,Other Gov't Dept. -Request For Transfer,CPG - Crime & Policing Group,WOLVERHAMPTON CITY PCT (G),1869788,"209,744.42"
Home Office,Home Office,10/12/2010,Other Gov't Dept. -Request For Transfer,CPG - Crime & Policing Group,WALSALL PCT (G),1869786,"163,119.89"
Home Office,Home Office,10/12/2010,Other Gov't Dept. -Request For Transfer,CPG - Crime & Policing Group,WAKFIELD DISTRICT PRIMARY CARE TRUST (G),1869785,"260,407.11"
Home Office,Home Office,10/12/2010,Other Gov't Dept. -Request For Transfer,CPG - Crime & Policing Group,TORBAY PCT (G),1869784,"48,298.04"
Home Office,Home Office,10/12/2010,Other Gov't Dept. -Request For Transfer,CPG - Crime & Policing Group,RICHMOND AND TWICKENHAM PCT (G),1869775,"29,370.94"
Home Office,Home Office,07/12/2010,Other Gov't Dept. -Request For Transfer,CPG - Crime & Policing Group,COMMUNITIES & LOCAL GOVERNMENT (G),1868196,"44,155.00"
Home Office,Home Office,07/12/2010,Other Gov't Dept. -Request For Transfer,CPG - Crime & Policing Group,COMMUNITIES & LOCAL GOVERNMENT (G),1868193,"100,500.00"
Home Office,Home Office,07/12/2010,Other Gov't Dept. -Request For Transfer,CPG - Crime & Policing Group,COMMUNITIES & LOCAL GOVERNMENT (G),1868192,"502,795.00"
Home Office,Home Office,07/12/2010,Other Gov't Dept. -Request For Transfer,CPG - Crime & Policing Group,COMMUNITIES & LOCAL GOVERNMENT (G),1868190,"5,608,304.00"
Home Office,Home Office,02/12/2010,Other Gov't Dept. -Request For Transfer,CPG - Crime & Policing Group,COMMUNITIES & LOCAL GOVERNMENT (G),1829058,"5,936,941.00"
Home Office,UKBA - UK Border Agency,10/12/2010,IT & Telecoms Components.Computer Equip (FA),UKBA - UK Border Agency,IBM DIRECT UNITED KINGDOM LTD,1869385,"1,815,492.50"
Home Office,UKBA - UK Border Agency,10/12/2010,IT & Telecoms Components.Computer Equip (FA),UKBA - UK Border Agency,IBM DIRECT UNITED KINGDOM LTD,1869389,"1,391,995.48"
Home Office,UKBA - UK Border Agency,29/12/2010,Politics & Civic Affairs.Displaced pers.assistance,UKBA - UK Border Agency,SODEXHO PASS LTD,1880534,"983,186.80"
Home Office,UKBA - UK Border Agency,24/12/2010,Politics & Civic Affairs.Displaced pers.assistance,UKBA - UK Border Agency,SODEXHO PASS LTD,1879550,"967,141.69"
Home Office,UKBA - UK Border Agency,02/12/2010,Politics & Civic Affairs.Displaced pers.assistance,UKBA - UK Border Agency,SODEXHO PASS LTD,1863881,"963,184.25"
Home Office,UKBA - UK Border Agency,07/12/2010,Politics & Civic Affairs.Displaced pers.assistance,UKBA - UK Border Agency,SODEXHO PASS LTD,1866382,"960,319.82"
Home Office,UKBA - UK Border Agency,14/12/2010,Politics & Civic Affairs.Displaced pers.assistance,UKBA - UK Border Agency,SODEXHO PASS LTD,1872694,"934,166.70"
Home Office,UKBA - UK Border Agency,20/12/2010,Politics & Civic Affairs.Human aid & relief Sect 4,UKBA - UK Border Agency,CLEARSPRINGS MANAGEMENT LTD,1875696,"837,136.30"
Home Office,UKBA - UK Border Agency,23/12/2010,Politics & Civic Affairs.Human aid & relief Sect 4,UKBA - UK Border Agency,UNITED PROPERTY MANAGEMENT,1878221,"818,469.62"
Home Office,UKBA - UK Border Agency,07/12/2010,Politics & Civic Affairs.Human aid & relief Sect 4,UKBA - UK Border Agency,GLASGOW CITY COUNCIL,1866546,"687,569.03"
Home Office,UKBA - UK Border Agency,02/12/2010,"IT, Broadcasting & Telecomms.IT Run Costs other -Prog",UKBA - UK Border Agency,ATOS ORIGIN IT SERVICES UK LIMITED- MEDICAL SERVICES,1822357,"654,457.38"
Home Office,UKBA - UK Border Agency,24/12/2010,Politics & Civic Affairs.REFUGEE PROG. SECT 95,UKBA - UK Border Agency,MANCHESTER CITY COUNCIL,1880334,"593,761.38"
Home Office,UKBA - UK Border Agency,02/12/2010,Politics & Civic Affairs.Human aid & relief Sect 4,UKBA - UK Border Agency,YMCA GLASGOW,1863864,"556,230.77"
Home Office,UKBA - UK Border Agency,23/12/2010,Politics & Civic Affairs.Human aid & relief Sect 4,UKBA - UK Border Agency,NEWCASTLE CITY COUNCIL,1878502,"526,441.84"
Home Office,UKBA - UK Border Agency,23/12/2010,Politics & Civic Affairs.Human aid & relief Sect 4,UKBA - UK Border Agency,YMCA GLASGOW,1878414,"469,003.11"
Home Office,UKBA - UK Border Agency,23/12/2010,Politics & Civic Affairs.Human aid & relief Sect 4,UKBA - UK Border Agency,UNITED PROPERTY MANAGEMENT,1878220,"459,391.57"
Home Office,UKBA - UK Border Agency,17/12/2010,Politics & Civic Affairs.Human aid & relief Sect 4,UKBA - UK Border Agency,PRIORITY PROPERTIES NORTH WEST,1874917,"441,126.71"
Home Office,UKBA - UK Border Agency,17/12/2010,Politics & Civic Affairs.Human aid & relief Sect 4,UKBA - UK Border Agency,HAPPY HOMES UK LTD,1874935,"434,866.42"
Home Office,UKBA - UK Border Agency,20/12/2010,Politics & Civic Affairs.Human aid & relief Sect 4,UKBA - UK Border Agency,ANGEL GROUP,1876332,"432,918.24"
Home Office,UKBA - UK Border Agency,22/12/2010,"IT, Broadcasting & Telecomms.IT Run Costs other -Prog",UKBA - UK Border Agency,ATOS ORIGIN IT SERVICES UK LIMITED- MEDICAL SERVICES,1875568,"383,393.10"
Home Office,UKBA - UK Border Agency,20/12/2010,Politics & Civic Affairs.Human aid & relief Sect 4,UKBA - UK Border Agency,CLEARSPRINGS MANAGEMENT LTD,1875703,"362,477.46"
Home Office,UKBA - UK Border Agency,03/12/2010,Asylum Provision.Asylum Cont Out Serv,UKBA - UK Border Agency,"REFUGEE ACTION ( REGIONS - NW, SE & SW )",1864645,"342,141.00"
Home Office,UKBA - UK Border Agency,17/12/2010,Politics & Civic Affairs.Human aid & relief Sect 4,UKBA - UK Border Agency,PRIORITY PROPERTIES NORTH WEST,1874915,"308,470.16"
Home Office,UKBA - UK Border Agency,20/12/2010,Politics & Civic Affairs.Human aid & relief Sect 4,UKBA - UK Border Agency,JOMAST PROPERTY AND FINANCE CO LTD,1876352,"301,317.05"
Home Office,UKBA - UK Border Agency,20/12/2010,"IT, Broadcasting & Telecomms.IT Run Costs other -Prog",UKBA - UK Border Agency,ATOS ORIGIN IT SERVICES UK LIMITED- MEDICAL SERVICES,1856399,"300,413.43"
Home Office,UKBA - UK Border Agency,20/12/2010,Professional & Admin Services.Corp Business IT Serv - PROG,UKBA - UK Border Agency,SERCO  LTD,1858955,"288,105.30"
Home Office,UKBA - UK Border Agency,20/12/2010,"IT, Broadcasting & Telecomms.IT Run Costs other -Prog",UKBA - UK Border Agency,ATOS ORIGIN IT SERVICES UK LIMITED- MEDICAL SERVICES,1875562,"270,407.45"
Home Office,UKBA - UK Border Agency,31/12/2010,Politics & Civic Affairs.Human aid & relief Sect 4,UKBA - UK Border Agency,METROPOLITAN SUPPORT TRUST (EAST MIDLANDS),1882930,"267,801.35"
Home Office,UKBA - UK Border Agency,20/12/2010,Politics & Civic Affairs.Human aid & relief Sect 4,UKBA - UK Border Agency,CLEARSPRINGS MANAGEMENT LTD,1875701,"264,076.11"
Home Office,UKBA - UK Border Agency,24/12/2010,"IT, Broadcasting & Telecomms.IT Run Costs other -Prog",UKBA - UK Border Agency,ATOS ORIGIN IT SERVICES UK LIMITED- MEDICAL SERVICES,1845481,"246,852.23"
Home Office,UKBA - UK Border Agency,21/12/2010,Politics & Civic Affairs.Human aid & relief Sect 4,UKBA - UK Border Agency,LIVERPOOL CITY COUNCIL,1877048,"240,666.62"
Home Office,UKBA - UK Border Agency,07/12/2010,Politics & Civic Affairs.Displaced pers.assistance,UKBA - UK Border Agency,SODEXHO PASS LTD,1866397,"232,861.83"
Home Office,UKBA - UK Border Agency,20/12/2010,Politics & Civic Affairs.Refugee repatriation.serv,UKBA - UK Border Agency,G4S JUSTICE SERVICES LTD - AIM,1858844,"228,719.85"
Home Office,UKBA - UK Border Agency,02/12/2010,Politics & Civic Affairs.Human aid & relief Sect 4,UKBA - UK Border Agency,LIVERPOOL CITY COUNCIL,1863675,"228,260.86"
Home Office,UKBA - UK Border Agency,10/12/2010,Politics & Civic Affairs.Refugee repatriation.serv,UKBA - UK Border Agency,G4S JUSTICE SERVICES LTD - AIM,1851386,"222,482.05"
Home Office,UKBA - UK Border Agency,23/12/2010,Politics & Civic Affairs.REFUGEE PROG. SECT 95,UKBA - UK Border Agency,UNITED PROPERTY MANAGEMENT,1878217,"216,373.17"
Home Office,UKBA - UK Border Agency,29/12/2010,Storage & Mail Services.Messenger & Reception Services,UKBA - UK Border Agency,SIEMENS BUSINESS SERVICES LTD,1865256,"207,579.08"
Home Office,UKBA - UK Border Agency,09/12/2010,IT & Telecoms Components.Computer Equip (FA),UKBA - UK Border Agency,SPECIALIST COMPUTER CENTRES PLC,1865158,"201,576.61"
Home Office,UKBA - UK Border Agency,07/12/2010,"IT, Broadcasting & Telecomms.IT Run Costs other -Prog",UKBA - UK Border Agency,ATOS ORIGIN IT SERVICES UK LIMITED- MEDICAL SERVICES,1856361,"196,065.20"
Home Office,UKBA - UK Border Agency,17/12/2010,Politics & Civic Affairs.Human aid & relief Sect 4,UKBA - UK Border Agency,PRIORITY PROPERTIES NORTH WEST,1874913,"196,008.54"
Home Office,UKBA - UK Border Agency,02/12/2010,Asylum Provision.Asylum serv Sect4Vouchers,UKBA - UK Border Agency,SODEXHO PASS LTD,1863880,"186,481.38"
Home Office,UKBA - UK Border Agency,14/12/2010,Asylum Provision.Asylum serv Sect4Vouchers,UKBA - UK Border Agency,SODEXHO PASS LTD,1872693,"180,300.71"
Home Office,UKBA - UK Border Agency,07/12/2010,Asylum Provision.Asylum serv Sect4Vouchers,UKBA - UK Border Agency,SODEXHO PASS LTD,1866385,"180,220.20"
Home Office,UKBA - UK Border Agency,24/12/2010,Asylum Provision.Asylum serv Sect4Vouchers,UKBA - UK Border Agency,SODEXHO PASS LTD,1879595,"179,274.55"
Home Office,UKBA - UK Border Agency,29/12/2010,Asylum Provision.Asylum serv Sect4Vouchers,UKBA - UK Border Agency,SODEXHO PASS LTD,1880537,"174,340.66"
Home Office,UKBA - UK Border Agency,20/12/2010,Politics & Civic Affairs.Human aid & relief Sect 4,UKBA - UK Border Agency,CLEARSPRINGS MANAGEMENT LTD,1875698,"173,016.27"
Home Office,UKBA - UK Border Agency,20/12/2010,"IT, Broadcasting & Telecomms.IT Run Costs other -Prog",UKBA - UK Border Agency,ATOS ORIGIN IT SERVICES UK LIMITED- MEDICAL SERVICES,1875551,"167,244.80"
Home Office,UKBA - UK Border Agency,07/12/2010,"IT, Broadcasting & Telecomms.IT Run Costs other -Prog",UKBA - UK Border Agency,ATOS ORIGIN IT SERVICES UK LIMITED- MEDICAL SERVICES,1845495,"154,053.08"
Home Office,UKBA - UK Border Agency,17/12/2010,Politics & Civic Affairs.Human aid & relief Sect 4,UKBA - UK Border Agency,PRIORITY PROPERTIES NORTH WEST,1874916,"148,073.32"
Home Office,UKBA - UK Border Agency,20/12/2010,Politics & Civic Affairs.Human aid & relief Sect 4,UKBA - UK Border Agency,ANGEL GROUP,1876335,"145,323.88"
Home Office,UKBA - UK Border Agency,17/12/2010,Politics & Civic Affairs.Human aid & relief Sect 4,UKBA - UK Border Agency,CLEARSPRINGS MANAGEMENT LTD,1875634,"144,933.75"
Home Office,UKBA - UK Border Agency,20/12/2010,Politics & Civic Affairs.Human aid & relief Sect 4,UKBA - UK Border Agency,ANGEL GROUP,1876330,"125,874.94"
Home Office,UKBA - UK Border Agency,24/12/2010,IT & Telecoms Components.Standard Software  (FA),UKBA - UK Border Agency,FUJITSU SERVICES (ALCEDO) LTD,1864240,"86,934.13"
Home Office,UKBA - UK Border Agency,07/12/2010,"IT, Broadcasting & Telecomms.IT Run Costs other -Prog",UKBA - UK Border Agency,ATOS ORIGIN IT SERVICES UK LIMITED- MEDICAL SERVICES,1845484,"81,886.93"
Home Office,UKBA - UK Border Agency,10/12/2010,Storage & Mail Services.Messenger & Reception Services,UKBA - UK Border Agency,SIEMENS BUSINESS SERVICES LTD,1853688,"75,312.37"
Home Office,UKBA - UK Border Agency,02/12/2010,"IT, Broadcasting & Telecomms.IT Run Costs other -Prog",UKBA - UK Border Agency,ATOS ORIGIN IT SERVICES UK LIMITED- MEDICAL SERVICES,1845489,"69,588.20"
Home Office,UKBA - UK Border Agency,31/12/2010,Politics & Civic Affairs.REFUGEE PROG. SECT 95,UKBA - UK Border Agency,CITY AND COUNTY OF SWANSEA,1882859,"68,440.50"
Home Office,UKBA - UK Border Agency,07/12/2010,"IT, Broadcasting & Telecomms.IT Run Costs other -Prog",UKBA - UK Border Agency,ATOS ORIGIN IT SERVICES UK LIMITED- MEDICAL SERVICES,1856393,"66,795.23"
Home Office,UKBA - UK Border Agency,07/12/2010,Asylum Provision.Asylum Cont Out Serv,UKBA - UK Border Agency,REFUGEE COUNCIL,1866085,"66,240.00"
Home Office,UKBA - UK Border Agency,13/12/2010,Asylum Provision.Asylum Cont Out Serv,UKBA - UK Border Agency,LEEDS CITY COUNCIL,1870571,"55,085.00"
Home Office,UKBA - UK Border Agency,03/12/2010,Asylum Provision.Asylum Cont Out Serv,UKBA - UK Border Agency,"REFUGEE ACTION ( REGIONS - NW, SE & SW )",1864640,"54,378.00"
Home Office,UKBA - UK Border Agency,14/12/2010,IT & Telecoms Components.Computer Equip  (FA),UKBA - UK Border Agency,ATOS ORIGIN IT SERVICES UK LIMITED- MEDICAL SERVICES,1845479,"40,537.50"
Home Office,UKBA - UK Border Agency,07/12/2010,Asylum Provision.Asylum Cont Out Serv,UKBA - UK Border Agency,REFUGEE COUNCIL,1866094,"39,480.00"
Home Office,UKBA - UK Border Agency,03/12/2010,Asylum Provision.Asylum Cont Out Serv,UKBA - UK Border Agency,"REFUGEE ACTION ( REGIONS - NW, SE & SW )",1864643,"38,817.00"
Home Office,UKBA - UK Border Agency,03/12/2010,Asylum Provision.Asylum Cont Out Serv,UKBA - UK Border Agency,WELSH REFUGEE COUNCIL,1865239,"38,442.00"
Home Office,UKBA - UK Border Agency,14/12/2010,IT & Telecoms Components.Computer Equip  (FA),UKBA - UK Border Agency,ATOS ORIGIN IT SERVICES UK LIMITED- MEDICAL SERVICES,1845482,"34,039.75"
Home Office,UKBA - UK Border Agency,22/12/2010,"IT, Broadcasting & Telecomms.IT Run Costs other -Prog",UKBA - UK Border Agency,ATOS ORIGIN IT SERVICES UK LIMITED- MEDICAL SERVICES,1875566,"26,437.50"
Home Office,UKBA - UK Border Agency,07/12/2010,"IT, Broadcasting & Telecomms.IT Run Costs other -Prog",UKBA - UK Border Agency,ATOS ORIGIN IT SERVICES UK LIMITED- MEDICAL SERVICES,1845499,"26,000.40"
Home Office,UKBA - UK Border Agency,31/12/2010,"Public Order, Security Service.Detention Services Contracts",UKBA - UK Border Agency,SERCO  LTD,1868214,"2,026,714.93"
Home Office,UKBA - UK Border Agency,20/12/2010,"Public Order, Security, Safety.Domestic Escort Services",UKBA - UK Border Agency,G4S CARE & JUSTICE SERVICES (UK) LTD,1860843,"1,537,876.84"
Home Office,UKBA - UK Border Agency,20/12/2010,"Public Order, Security, Safety.Domestic Escort Services",UKBA - UK Border Agency,G4S CARE & JUSTICE SERVICES (UK) LTD,1870503,"1,460,449.69"
Home Office,UKBA - UK Border Agency,07/12/2010,"Public Order, Security Service.Detention Services Contracts",UKBA - UK Border Agency,THE GEO GROUP UK LTD,1863943,"1,215,286.05"
Home Office,UKBA - UK Border Agency,20/12/2010,"Public Order, Security Service.Detention Services Contracts",UKBA - UK Border Agency,G4S CARE & JUSTICE SERVICES (UK) LTD,1870562,"1,003,776.65"
Home Office,UKBA - UK Border Agency,31/12/2010,"Public Order, Security Service.Detention Services Contracts",UKBA - UK Border Agency,SERCO  LTD,1866043,"897,746.31"
Home Office,UKBA - UK Border Agency,20/12/2010,"Public Order, Security Service.Detention Services Contracts",UKBA - UK Border Agency,G4S CARE & JUSTICE SERVICES (UK) LTD,1873830,"698,377.70"
Home Office,UKBA - UK Border Agency,24/12/2010,"Public Order, Security, Safety.Escorting services",UKBA - UK Border Agency,G4S CARE & JUSTICE SERVICES (UK) LTD,1863836,"686,144.14"
Home Office,UKBA - UK Border Agency,07/12/2010,"Public Order, Security Service.Detention Services Contracts",UKBA - UK Border Agency,THE GEO GROUP UK LTD,1863945,"582,970.49"
Home Office,UKBA - UK Border Agency,20/12/2010,"Public Order, Security Service.Detention Services Contracts",UKBA - UK Border Agency,G4S CARE & JUSTICE SERVICES (UK) LTD,1869350,"550,942.44"
Home Office,UKBA - UK Border Agency,20/12/2010,"Public Order, Security Service.Detention Services Contracts",UKBA - UK Border Agency,G4S CARE & JUSTICE SERVICES (UK) LTD,1866639,"517,832.81"
Home Office,UKBA - UK Border Agency,21/12/2010,"Public Order, Security Service.Detention Services Contracts",UKBA - UK Border Agency,G4S CARE & JUSTICE SERVICES (UK) LTD,1860778,"488,265.25"
Home Office,UKBA - UK Border Agency,07/12/2010,"Public Order, Security, Safety.Escorting services",UKBA - UK Border Agency,G4S CARE & JUSTICE SERVICES (UK) LTD,1850199,"296,822.57"
Home Office,UKBA - UK Border Agency,31/12/2010,Professional & Admin Services.Residential Rental - PROG,UKBA - UK Border Agency,GVA GRIMLEY,1878978,"215,869.54"
Home Office,UKBA - UK Border Agency,31/12/2010,"Public Order, Security Service.Detention Services Contracts",UKBA - UK Border Agency,SERCO  LTD,1866026,"154,878.63"
Home Office,UKBA - UK Border Agency,07/12/2010,"Public Order, Security Service.Detention Services Contracts",UKBA - UK Border Agency,THE GEO GROUP UK LTD,1865180,"143,507.17"
Home Office,UKBA - UK Border Agency,31/12/2010,"Public Order, Security, Safety.Escorting services",UKBA - UK Border Agency,G4S CARE & JUSTICE SERVICES (UK) LTD,1866402,"110,105.39"
Home Office,UKBA - UK Border Agency,24/12/2010,"Building, Construction Service.Maintenance & Repair serv-PROG",UKBA - UK Border Agency,G4S CARE & JUSTICE SERVICES (UK) LTD,1861695,"101,495.47"
Home Office,UKBA - UK Border Agency,03/12/2010,"Public Order, Security, Safety.Domestic Escort Services",UKBA - UK Border Agency,G4S CARE & JUSTICE SERVICES (UK) LTD,1845716,"92,688.25"
Home Office,UKBA - UK Border Agency,20/12/2010,"Public Order, Security, Safety.Confinement Surveillance",UKBA - UK Border Agency,SERCO  LTD,1860333,"88,871.72"
Home Office,UKBA - UK Border Agency,17/12/2010,"Public Order, Security, Safety.Escorting services",UKBA - UK Border Agency,G4S CARE & JUSTICE SERVICES (UK) LTD,1854633,"88,538.80"
Home Office,UKBA - UK Border Agency,14/12/2010,"Public Order, Security, Safety.Escorting services",UKBA - UK Border Agency,G4S CARE & JUSTICE SERVICES (UK) LTD,1855533,"70,909.66"
Home Office,UKBA - UK Border Agency,17/12/2010,"Public Order, Security, Safety.Escorting services",UKBA - UK Border Agency,G4S CARE & JUSTICE SERVICES (UK) LTD,1857445,"70,443.82"
Home Office,UKBA - UK Border Agency,10/12/2010,"Public Order, Security, Safety.Escorting services",UKBA - UK Border Agency,G4S CARE & JUSTICE SERVICES (UK) LTD,1851418,"69,517.24"
Home Office,UKBA - UK Border Agency,10/12/2010,"Public Order, Security, Safety.Escorting services",UKBA - UK Border Agency,G4S CARE & JUSTICE SERVICES (UK) LTD,1851425,"58,973.76"
Home Office,UKBA - UK Border Agency,21/12/2010,"Public Order, Security, Safety.Escorting services",UKBA - UK Border Agency,G4S CARE & JUSTICE SERVICES (UK) LTD,1860838,"53,265.43"
Home Office,UKBA - UK Border Agency,07/12/2010,"Public Order, Security, Safety.Domestic Escort Services",UKBA - UK Border Agency,G4S CARE & JUSTICE SERVICES (UK) LTD,1850209,"46,998.74"
Home Office,UKBA - UK Border Agency,17/12/2010,"Public Order, Security, Safety.Domestic Escort Services",UKBA - UK Border Agency,G4S CARE & JUSTICE SERVICES (UK) LTD,1857434,"40,531.57"
Home Office,UKBA - UK Border Agency,22/12/2010,"Public Order, Security, Safety.PORT AUTHORITY DETENTION",UKBA - UK Border Agency,HARWICH INTL PORT LTD,1877075,"35,191.96"
Home Office,UKBA - UK Border Agency,21/12/2010,"Building, Construction Service.Maintenance & Repair serv-PROG",UKBA - UK Border Agency,G4S CARE & JUSTICE SERVICES (UK) LTD,1860774,"28,038.31"
Home Office,UKBA - UK Border Agency,20/12/2010,"Public Order, Security, Safety.Confinement Surveillance",UKBA - UK Border Agency,G4S CARE & JUSTICE SERVICES (UK) LTD,1859643,"25,855.59"
Home Office,UKBA - UK Border Agency,07/12/2010,"Public Order, Security Service.Detention Services Contracts",UKBA - UK Border Agency,THE GEO GROUP UK LTD,1865296,"25,123.06"
Home Office,UKBA - UK Border Agency,23/12/2010,Storage & Mail Services.Messenger & Reception Services,UKBA - UK Border Agency,MM TELEPERFORMANCE LTD T/A TELEPERFORMANCE,1878501,"176,250.00"
Home Office,UKBA - UK Border Agency,03/12/2010,Storage & Mail Services.Messenger & Reception Services,UKBA - UK Border Agency,MM TELEPERFORMANCE LTD T/A TELEPERFORMANCE,1843445,"57,373.51"
Home Office,UKBA - UK Border Agency,24/12/2010,Storage & Mail Services.Messenger & Reception Services,UKBA - UK Border Agency,MM TELEPERFORMANCE LTD T/A TELEPERFORMANCE,1880194,"53,852.93"
Home Office,UKBA - UK Border Agency,15/12/2010,Storage & Mail Services.Messenger & Reception Services,UKBA - UK Border Agency,IDENTITY & PASSPORTS SERVICE,1873000,"52,894.20"
Home Office,UKBA - UK Border Agency,15/12/2010,Other Government Departments,UKBA - UK Border Agency,EALING REGISTER OFFICE,1872872,"37,040.00"
Home Office,UKBA - UK Border Agency,15/12/2010,Other Government Departments,UKBA - UK Border Agency,LONDON BOROUGH OF HOUNSLOW,1872932,"30,160.00"
Home Office,UKBA - UK Border Agency,15/12/2010,Other Government Departments,UKBA - UK Border Agency,LEICESTER CITY (LA),1872996,"29,280.00"
Home Office,UKBA - UK Border Agency,22/12/2010,Financial & Insurance Services.Banking & Monetary Serv - PROG,UKBA - UK Border Agency,STREAMLINE,1864663,"29,189.67"
Home Office,UKBA - UK Border Agency,22/12/2010,"Science, Technical & Research.Computer services - PROG",UKBA - UK Border Agency,ATOS ORIGIN IT SERVICES UK LIMITED- MEDICAL SERVICES,1877904,"29,164.68"
Home Office,UKBA - UK Border Agency,15/12/2010,Other Government Departments,UKBA - UK Border Agency,BIRMINGHAM CITY COUNCIL,1872786,"27,200.00"
Home Office,UKBA - UK Border Agency,15/12/2010,Other Government Departments,UKBA - UK Border Agency,MANCHESTER CITY COUNCIL,1873012,"26,160.00"
Home Office,UKBA - UK Border Agency,23/12/2010,"IT, Broadcasting & Telecomms.IT Run Cost Info Support-PROG",UKBA - UK Border Agency,ATOS ORIGIN IT SERVICES UK LIMITED- MEDICAL SERVICES,1859983,"519,127.93"
Home Office,UKBA - UK Border Agency,24/12/2010,"Law Enforcement & safety Equip.Haulage, Storage & Disp (HSD)",UKBA - UK Border Agency,ASSOCIATED BRITISH PORTS,1879325,"438,783.78"
Home Office,UKBA - UK Border Agency,31/12/2010,"Transport, Storage & Mail Serv.Vehicle Hire Rent & Lease-PROG",UKBA - UK Border Agency,TNT UK LIMITED,1882866,"272,807.59"
Home Office,UKBA - UK Border Agency,30/12/2010,"Vehicles, Ships, Airplanes.Vehicle Maint Equip (FA)- PROG",UKBA - UK Border Agency,DAMEN SHIPYARDS GORINCHEM,1829561,"248,240.33"
Home Office,UKBA - UK Border Agency,08/12/2010,"Public Order, Security, Safety.Security Guard Services - PROG",UKBA - UK Border Agency,EAMUS CORK SOLUTIONS,1866432,"158,043.35"
Home Office,UKBA - UK Border Agency,24/12/2010,Management & Admin Serv.Overseas Posting Costs-PROG,UKBA - UK Border Agency,CROWN RELOCATIONS,1879115,"105,296.76"
Home Office,UKBA - UK Border Agency,31/12/2010,Public Order.Jail or prison services,UKBA - UK Border Agency,SERCO  LTD,1868239,"90,874.38"
Home Office,UKBA - UK Border Agency,23/12/2010,Law Enforcement & safety Equip.Surveillance & Det Equip- PROG,UKBA - UK Border Agency,GATWICK AIRPORT LTD,1878301,"88,385.85"
Home Office,UKBA - UK Border Agency,03/12/2010,Animal Material & Supplies.Detect Dogs-Kennel & Misc-PROG,UKBA - UK Border Agency,WAGTAIL,1865260,"86,181.73"
Home Office,UKBA - UK Border Agency,08/12/2010,Travel & Food & Lodging.Juxtaposed Oversea Trav�PROG,UKBA - UK Border Agency,THE CHANNEL TUNNEL GROUP LTD,1864539,"67,757.00"
Home Office,UKBA - UK Border Agency,23/12/2010,"IT, Broadcasting & Telecomms.IT Run Cost Info Support-PROG",UKBA - UK Border Agency,ATOS ORIGIN IT SERVICES UK LIMITED- MEDICAL SERVICES,1857800,"60,104.78"
Home Office,UKBA - UK Border Agency,30/12/2010,Laboratory & Scientific Equip.Scientific Equip Running Costs,UKBA - UK Border Agency,L3 COMMUNICATIONS (UK) LTD,1882288,"57,310.08"
Home Office,UKBA - UK Border Agency,16/12/2010,Laboratory & Scientific Equip.Scientific Equip Running Costs,UKBA - UK Border Agency,AMERICAN SCIENCE & ENGINEERING INC,1874821,"44,425.58"
Home Office,UKBA - UK Border Agency,08/12/2010,Law Enforcement & safety Equip.Security & Control Equip- PROG,UKBA - UK Border Agency,SAIC LIMITED,1863002,"34,547.35"
Home Office,UKBA - UK Border Agency,30/12/2010,Law Enforcement & safety Equip.Security & Control Equip- PROG,UKBA - UK Border Agency,SAIC LIMITED,1871668,"34,547.35"
Home Office,UKBA - UK Border Agency,22/12/2010,Storage & Mail Services.Messenger & Reception Services,UKBA - UK Border Agency,TNT UK LIMITED,1877466,"28,595.51"
Home Office,UKBA - UK Border Agency,14/12/2010,"Transport, Storage & Mail Serv.Parking fees - PROG",UKBA - UK Border Agency,GATWICK AIRPORT LTD,1871944,"27,680.77"
Home Office,UKBA - UK Border Agency,17/12/2010,IT & Telecoms Components.Standard Software (FA),UKBA - UK Border Agency,IBM DIRECT UNITED KINGDOM LTD,1873193,"6,598,315.91"
Home Office,UKBA - UK Border Agency,17/12/2010,IT & Telecoms Components.Standard Software (FA),UKBA - UK Border Agency,IBM DIRECT UNITED KINGDOM LTD,1872994,"3,468,858.50"
Home Office,UKBA - UK Border Agency,17/12/2010,IT & Telecoms Components.Standard Software (FA),UKBA - UK Border Agency,IBM DIRECT UNITED KINGDOM LTD,1873196,"2,003,615.88"
Home Office,UKBA - UK Border Agency,13/12/2010,"Transport, Storage & Mail Serv.Document Storage Serv - ADMN",UKBA - UK Border Agency,IRON MOUNTAIN (UK) LTD,1853836,"472,445.14"
Home Office,UKBA - UK Border Agency,10/12/2010,"Science, Technical & Research.Computer services - PROG",UKBA - UK Border Agency,ATOS ORIGIN IT SERVICES UK LIMITED- MEDICAL SERVICES,1858092,"170,499.55"
Home Office,UKBA - UK Border Agency,09/12/2010,"Public Order, Security, Safety.Security Guard Services - PROG",UKBA - UK Border Agency,OCS GROUP UK LTD,1866492,"150,055.40"
Home Office,UKBA - UK Border Agency,24/12/2010,"Transport, Storage & Mail Serv.Fuel & Vehicle Supp Serv- PROG",UKBA - UK Border Agency,INCHCAPE FLEET SOLUTIONS LTD,1877382,"122,408.01"
Home Office,UKBA - UK Border Agency,24/12/2010,"Transport, Storage & Mail Serv.Fuel & Vehicle Supp Serv- PROG",UKBA - UK Border Agency,INCHCAPE FLEET SOLUTIONS LTD,1877368,"98,462.95"
Home Office,UKBA - UK Border Agency,02/12/2010,Generators & Equip (FA).Plant & machinery (FA),UKBA - UK Border Agency,ARQIVA LTD,1863774,"60,598.91"
Home Office,UKBA - UK Border Agency,24/12/2010,IT & Telecommunications.IT & Telecommunications,UKBA - UK Border Agency,FUJITSU SERVICES (ALCEDO) LTD,1864252,"53,294.99"
Home Office,UKBA - UK Border Agency,22/12/2010,Management & Admin Serv.Corp & Bus Org Structure- ADMN,UKBA - UK Border Agency,VERIZON UK LTD,1866045,"43,419.00"
Home Office,UKBA - UK Border Agency,24/12/2010,"Science, Technical & Research.Computer services - PROG",UKBA - UK Border Agency,ATOS ORIGIN IT SERVICES UK LIMITED- MEDICAL SERVICES,1862292,"41,125.00"
Home Office,UKBA - UK Border Agency,10/12/2010,"Transport, Storage & Mail Serv.Mailing, Mail Delivery Service",UKBA - UK Border Agency,FRANCOTYP-POSTALIA LIMITED,1870406,"40,000.00"
Home Office,UKBA - UK Border Agency,13/12/2010,"Science, Technical & Research.Computer services - PROG",UKBA - UK Border Agency,ITM LTD,1864552,"39,758.48"
Home Office,UKBA - UK Border Agency,22/12/2010,Management & Admin Serv.Corp & Bus Org Structure- ADMN,UKBA - UK Border Agency,VERIZON UK LTD,1761205,"39,395.08"
Home Office,UKBA - UK Border Agency,22/12/2010,Management & Admin Serv.Corp & Bus Org Structure- ADMN,UKBA - UK Border Agency,VERIZON UK LTD,1871636,"37,911.28"
Home Office,UKBA - UK Border Agency,17/12/2010,"Transport, Storage & Mail Serv.Fuel & Vehicle Supp Serv- PROG",UKBA - UK Border Agency,ARVAL UK LTD,1868281,"36,207.25"
Home Office,UKBA - UK Border Agency,17/12/2010,"Transport, Storage & Mail Serv.Fuel & Vehicle Supp Serv- PROG",UKBA - UK Border Agency,ARVAL UK LTD,1858800,"34,019.99"
Home Office,UKBA - UK Border Agency,02/12/2010,Management & Admin Serv.Temp IT N/w Specialists - PROG,UKBA - UK Border Agency,ADVANTAGE TECHNICAL RESOURCING,1861966,"30,491.25"
Home Office,UKBA - UK Border Agency,22/12/2010,Management & Admin Serv.Corp & Bus Org Structure- ADMN,UKBA - UK Border Agency,VERIZON UK LTD,1871623,"30,300.17"
Home Office,UKBA - UK Border Agency,22/12/2010,Management & Admin Serv.Corp & Bus Org Structure- ADMN,UKBA - UK Border Agency,VERIZON UK LTD,1871631,"29,586.81"
Home Office,UKBA - UK Border Agency,22/12/2010,Management & Admin Serv.Corp & Bus Org Structure- ADMN,UKBA - UK Border Agency,VERIZON UK LTD,1871634,"29,026.94"
Home Office,UKBA - UK Border Agency,17/12/2010,"Science, Technical & Research.Computer services - PROG",UKBA - UK Border Agency,ATOS ORIGIN IT SERVICES UK LIMITED- MEDICAL SERVICES,1875555,"26,962.73"
Home Office,UKBA - UK Border Agency,16/12/2010,"IT, Broadcasting & Telecomms.Sirius - Other Services - ADMN",UKBA - UK Border Agency,FUJITSU SERVICES (ALCEDO) LTD,1839276,"26,107.68"
Home Office,UKBA - UK Border Agency,22/12/2010,"IT, Broadcasting & Telecomms.Software - PROG",UKBA - UK Border Agency,ATOS ORIGIN IT SERVICES UK LIMITED- MEDICAL SERVICES,1877874,"25,831.20"
Home Office,UKBA - UK Border Agency,29/12/2010,"IT, Broadcasting & Telecomms.Software - PROG",UKBA - UK Border Agency,ATOS ORIGIN IT SERVICES UK LIMITED- MEDICAL SERVICES,1875565,"25,831.20"
Home Office,UKBA - UK Border Agency,22/12/2010,Management & Admin Serv.Corp & Bus Org Structure- ADMN,UKBA - UK Border Agency,VERIZON UK LTD,1873134,"25,236.02"
Home Office,UKBA - UK Border Agency,14/12/2010,REPATRIATION SERVICES.ESCORT SERVICES,UKBA - UK Border Agency,IOM INTERNATIONAL ORGANIZATION FOR MIGRATION,1871947,"2,285,296.78"
Home Office,UKBA - UK Border Agency,14/12/2010,Defense & Law Enforcement.Police Liaison Officers,UKBA - UK Border Agency,THE METROPOLITAN POLICE,1872038,"309,153.00"
Home Office,UKBA - UK Border Agency,06/12/2010,Asylum Services.Public Expense Removals,UKBA - UK Border Agency,CARLSON WAGONLIT TRAVEL,1865083,"308,649.69"
Home Office,UKBA - UK Border Agency,14/12/2010,Defense & Law Enforcement.Police Liaison Officers,UKBA - UK Border Agency,THE METROPOLITAN POLICE,1872037,"282,285.00"
Home Office,UKBA - UK Border Agency,02/12/2010,Asylum Services.Public Expense Removals,UKBA - UK Border Agency,CARLSON WAGONLIT TRAVEL,1863852,"230,290.00"
Home Office,UKBA - UK Border Agency,02/12/2010,Asylum Services.Public Expense Removals,UKBA - UK Border Agency,CARLSON WAGONLIT TRAVEL,1863854,"230,290.00"
Home Office,UKBA - UK Border Agency,22/12/2010,Asylum Services.Public Expense Removals,UKBA - UK Border Agency,CARLSON WAGONLIT TRAVEL,1877160,"230,290.00"
Home Office,UKBA - UK Border Agency,15/12/2010,Asylum Services.Public Expense Removals,UKBA - UK Border Agency,CARLSON WAGONLIT TRAVEL,1873010,"205,578.60"
Home Office,UKBA - UK Border Agency,07/12/2010,Asylum Services.Public Expense Removals,UKBA - UK Border Agency,CARLSON WAGONLIT TRAVEL,1866064,"201,405.87"
Home Office,UKBA - UK Border Agency,29/12/2010,Asylum Services.Public Expense Removals,UKBA - UK Border Agency,CARLSON WAGONLIT TRAVEL,1880650,"166,938.86"
Home Office,UKBA - UK Border Agency,14/12/2010,Asylum Services.Public Expense Removals,UKBA - UK Border Agency,CARLSON WAGONLIT TRAVEL,1871520,"147,015.10"
Home Office,UKBA - UK Border Agency,02/12/2010,Asylum Services.Public Expense Removals,UKBA - UK Border Agency,CARLSON WAGONLIT TRAVEL,1863046,"145,696.44"
Home Office,UKBA - UK Border Agency,06/12/2010,Asylum Services.Public Expense Removals,UKBA - UK Border Agency,CARLSON WAGONLIT TRAVEL,1864287,"144,532.51"
Home Office,UKBA - UK Border Agency,10/12/2010,Asylum Services.Public Expense Removals,UKBA - UK Border Agency,CARLSON WAGONLIT TRAVEL,1869314,"137,290.43"
Home Office,UKBA - UK Border Agency,14/12/2010,Asylum Services.Public Expense Removals,UKBA - UK Border Agency,CARLSON WAGONLIT TRAVEL,1871521,"136,064.27"
Home Office,UKBA - UK Border Agency,01/12/2010,Public Order.Voluntary Assisted Return,UKBA - UK Border Agency,CITIBANK INTERNATIONAL PLC,1863589,"125,000.00"
Home Office,UKBA - UK Border Agency,14/12/2010,Asylum Services.Public Expense Removals,UKBA - UK Border Agency,CARLSON WAGONLIT TRAVEL,1871522,"117,691.76"
Home Office,UKBA - UK Border Agency,02/12/2010,Asylum Services.Public Expense Removals,UKBA - UK Border Agency,CARLSON WAGONLIT TRAVEL,1863795,"103,495.43"
Home Office,UKBA - UK Border Agency,15/12/2010,Asylum Services.Public Expense Removals,UKBA - UK Border Agency,CARLSON WAGONLIT TRAVEL,1873004,"99,098.69"
Home Office,UKBA - UK Border Agency,08/12/2010,Public Order.Jail or prison services,UKBA - UK Border Agency,METROPOLITAN POLICE,1868490,"95,250.00"
Home Office,UKBA - UK Border Agency,30/12/2010,Asylum Services.Public Expense Removals,UKBA - UK Border Agency,CARLSON WAGONLIT TRAVEL,1881487,"93,098.42"
Home Office,UKBA - UK Border Agency,14/12/2010,Management & Admin Serv.Civil Liability Serv - PROG,UKBA - UK Border Agency,METROPOLITAN POLICE AUTHORITY,1831247,"83,806.75"
Home Office,UKBA - UK Border Agency,31/12/2010,Asylum Services.Public Expense Removals,UKBA - UK Border Agency,CARLSON WAGONLIT TRAVEL,1882275,"70,189.15"
Home Office,UKBA - UK Border Agency,03/12/2010,Asylum Services.Public Expense Removals,UKBA - UK Border Agency,CARLSON WAGONLIT TRAVEL,1864284,"69,465.55"
Home Office,UKBA - UK Border Agency,07/12/2010,Defense & Law Enforcement.Police Liaison Officers,UKBA - UK Border Agency,SOUTH YORKSHIRE POLICE,1863091,"49,035.27"
Home Office,UKBA - UK Border Agency,31/12/2010,Defense & Law Enforcement.Police Liaison Officers,UKBA - UK Border Agency,NOTTINGHAMSHIRE POLICE AUTHORITY 1,1882898,"31,364.84"
Home Office,UKBA - UK Border Agency,08/12/2010,Defense & Law Enforcement.Police Liaison Officers,UKBA - UK Border Agency,DUMFRIES & GALLOWAY COUNCIL,1867219,"31,356.97"
Home Office,UKBA - UK Border Agency,31/12/2010,Defense & Law Enforcement.Police Liaison Officers,UKBA - UK Border Agency,NOTTINGHAMSHIRE POLICE AUTHORITY 1,1882899,"30,695.23"
Home Office,UKBA - UK Border Agency,08/12/2010,Defense & Law Enforcement.Police Liaison Officers,UKBA - UK Border Agency,WEST MIDLANDS POLICE,1867210,"30,580.18"
Home Office,UKBA - UK Border Agency,03/12/2010,Defense & Law Enforcement.Police Liaison Officers,UKBA - UK Border Agency,LEICESTERSHIRE CONSTABULARY,1864648,"30,019.99"
Home Office,UKBA - UK Border Agency,20/12/2010,"Transport, Storage & Mail Serv.Parking fees - PROG",UKBA - UK Border Agency,PRINCES DOCK DEVELOPMENT COMPANY NO 4 LTD,1876282,"29,072.44"
Home Office,UKBA - UK Border Agency,24/12/2010,Asylum Services.Public Expense Removals,UKBA - UK Border Agency,CARLSON WAGONLIT TRAVEL,1877172,"28,387.08"
Home Office,UKBA - UK Border Agency,24/12/2010,Asylum Services.Public Expense Removals,UKBA - UK Border Agency,CARLSON WAGONLIT TRAVEL,1877175,"28,387.08"
Home Office,UKBA - UK Border Agency,07/12/2010,Defense & Law Enforcement.Police Liaison Officers,UKBA - UK Border Agency,GREATER MANCHESTER POLICE,1867142,"28,290.86"
Home Office,UKBA - UK Border Agency,31/12/2010,Defense & Law Enforcement.Police Liaison Officers,UKBA - UK Border Agency,HUMBERSIDE POLICE AUTHORITY,1882896,"26,971.47"
Home Office,UKBA - UK Border Agency,06/12/2010,Asylum Services.Public Expense Removals,UKBA - UK Border Agency,CARLSON WAGONLIT TRAVEL,1865084,"26,434.80"
Home Office,UKBA - UK Border Agency,03/12/2010,Defense & Law Enforcement.Police Liaison Officers,UKBA - UK Border Agency,STRATHCLYDE JOINT POLICE BOARD,1864652,"26,286.89"
Home Office,UKBA - UK Border Agency,03/12/2010,REPATRIATION SERVICES.ESCORT SERVICES,UKBA - UK Border Agency,IOM INTERNATIONAL ORGANIZATION FOR MIGRATION,1864285,"26,202.00"
Home Office,UKBA - UK Border Agency,21/12/2010,Professional & Admin Services.Visa Processing Services,UKBA - UK Border Agency,VF WORLDWIDE HOLDINGS LTD,1875603,"3,338,589.07"
Home Office,UKBA - UK Border Agency,20/12/2010,Storage & Mail Services.Messenger & Reception Services,UKBA - UK Border Agency,CSC COMPUTER SCIENCES CORPORATION,1872742,"2,334,199.87"
Home Office,UKBA - UK Border Agency,22/12/2010,Storage & Mail Services.Messenger & Reception Services,UKBA - UK Border Agency,CSC COMPUTER SCIENCES CORPORATION,1877054,"2,318,772.08"
Home Office,UKBA - UK Border Agency,20/12/2010,Storage & Mail Services.Messenger & Reception Services,UKBA - UK Border Agency,CSC COMPUTER SCIENCES CORPORATION,1873775,"1,414,908.32"
Home Office,UKBA - UK Border Agency,22/12/2010,Professional & Admin Services.Visa Processing Services,UKBA - UK Border Agency,USCIS (DEPT OF HOMELAND SECURITY),1876370,"720,000.00"
Home Office,Home Office,03/12/2010,GPC Card,PFD,BARCLAYS BANK,1864699,"425,195.69"
Home Office,UKBA - UK Border Agency,10/12/2010,"Transport, Storage & Mail Serv.Visa stock",UKBA - UK Border Agency,3M SECURITY PRINTING & SYSTEMS LTD,1843651,"125,208.00"
Home Office,UKBA - UK Border Agency,03/12/2010,Management & Admin Serv.Temp IT S/w Developers - PROG,UKBA - UK Border Agency,LOGICA CMG (UK) LIMITED,1846699,"50,775.28"
Home Office,UKBA - UK Border Agency,10/12/2010,"Transport, Storage & Mail Serv.Visa stock",UKBA - UK Border Agency,3M SECURITY PRINTING & SYSTEMS LTD,1843649,"36,547.20"
Home Office,UKBA - UK Border Agency,02/12/2010,Professional & Admin Services.Business admin services - PROG,UKBA - UK Border Agency,TRIBAL HELM CORPORATION LTD,1863227,"32,722.95"
Home Office,Home Office,06/12/2010,"IT, Broadcasting & Telecomms.IT Run Costs Other - ADMN",Group HR,LOGICA CMG (UK) LIMITED,1849366,"83,153.08"
Home Office,Home Office,24/12/2010,"IT, Broadcasting & Telecomms.IT Run Costs Other - ADMN",Group HR,LOGICA CMG (UK) LIMITED,1864344,"82,444.33"
Home Office,Home Office,24/12/2010,"IT, Broadcasting & Telecomms.IT Run Costs Other - ADMN",Group HR,LOGICA CMG (UK) LIMITED,1864551,"43,172.59"
Home Office,Home Office,31/12/2010,IT & Telecommunications.IT & Telecommunications,Performance & Finance Directorate,LOGICA CMG UK LTD,1862190,"299,496.93"
Home Office,Home Office,16/12/2010,Travel & Food & Lodging.Travel facilitation,Performance & Finance Directorate,CARLSON WAGONLIT TRAVEL,1874179,"89,483.44"
Home Office,Home Office,08/12/2010,Travel & Food & Lodging.Travel facilitation,Performance & Finance Directorate,CARLSON WAGONLIT TRAVEL,1867247,"87,535.95"
Home Office,Home Office,09/12/2010,FLEET.VEHICLE MANAGEMENT,Performance & Finance Directorate,LEX AUTOLEASE LTD,1868494,"75,162.68"
Home Office,Home Office,23/12/2010,Travel & Food & Lodging.Travel facilitation,Performance & Finance Directorate,CARLSON WAGONLIT TRAVEL,1878172,"59,144.99"
Home Office,Home Office,30/12/2010,Fuels and Lubricants.Gaseous fuels - PROG,Performance & Finance Directorate,ARVAL UK LTD,1881892,"54,470.06"
Home Office,Home Office,31/12/2010,Travel & Food & Lodging.Travel facilitation,Performance & Finance Directorate,CARLSON WAGONLIT TRAVEL,1882593,"39,228.44"
Home Office,Home Office,15/12/2010,ESTATES AND FACILITIES.ESTATES & FACILITIES,Performance & Finance Directorate,ANNES GATE PROPERTY PLC,1872748,"37,855.88"
Home Office,Home Office,23/12/2010,FLEET.VEHICLE MANAGEMENT,Performance & Finance Directorate,ENTERPRISE RENT-A-CAR UK LTD,1878210,"37,635.23"
Home Office,Home Office,10/12/2010,MARKETING & COMMS.CONFERENCES AND EVENTS,Performance & Finance Directorate,NYS CORPORATE LTD,1869611,"36,183.21"
Home Office,Home Office,09/12/2010,FLEET.VEHICLE MANAGEMENT,Performance & Finance Directorate,LEX AUTOLEASE LTD,1868491,"34,475.43"
Home Office,Home Office,10/12/2010,IT & Telecommunications Equip.Hardware adapters,Communications,SPECIALIST COMPUTER CENTRES PLC,1860164,"112,514.62"
Home Office,Home Office,14/12/2010,Published Products.Electronic publication & music,Communications,SAVVIS UK LTD,1733842,"34,218.59"
Home Office,Home Office,14/12/2010,Published Products.Electronic publication & music,Communications,SAVVIS UK LTD,1752214,"33,877.28"
Home Office,Home Office,06/12/2010,Published Products.Electronic publication & music,Communications,SAVVIS UK LTD,1848809,"31,224.19"
Home Office,Home Office,30/12/2010,"Science, Technical & Research.Testing","Research, Dev & Statistics",EXCHEM DEFENCE SYSTEMS LTD,1882147,"29,316.25"
Home Office,Home Office,06/12/2010,"Science, Technical & Research.Social Research","Research, Dev & Statistics",UNIVERSITY OF LEEDS,1858718,"28,584.00"
Home Office,Home Office,02/12/2010,"Science, Technical & Research.Social Research","Research, Dev & Statistics",KINGS COLLEGE,1864302,"27,624.91"
Home Office,Home Office,20/12/2010,"Science, Technical & Research.Social Research","Research, Dev & Statistics",GCPD,1873126,"25,445.00"
Home Office,Home Office,29/12/2010,"Building, Construction Service.General building construction",CPG - Crime & Policing Group,GALLIFORD TRY CONSTRUCTION LIMITED SOUTH,1881119,"417,247.27"
Home Office,Home Office,23/12/2010,"Building, Construction Service.General building construction",CPG - Crime & Policing Group,WATES INTERIORS LTD,1851498,"143,987.48"
Home Office,Home Office,08/12/2010,"Building, Construction Service.General building construction",CPG - Crime & Policing Group,OFFICE PROJECTS LIMITED,1867275,"128,840.78"
Home Office,Home Office,24/12/2010,Real Estate management Serv.Property Management,CPG - Crime & Policing Group,ANNES GATE PROPERTY PLC,1872956,"3,633,637.63"
Home Office,Home Office,20/12/2010,ESTATES AND FACILITIES.RENT & RATES,CPG - Crime & Policing Group,DTZ DEBENHAM TIE LEUNG LTD,1875594,"1,123,638.74"
Home Office,Home Office,02/12/2010,Professional & Admin Services.Facilities Man Serv - ADMN,CPG - Crime & Policing Group,AMEY COMMUNITY,1862240,"1,109,391.92"
Home Office,Home Office,02/12/2010,Professional & Admin Services.Facilities Man Serv - ADMN,CPG - Crime & Policing Group,AMEY COMMUNITY,1862249,"813,673.05"
Home Office,Home Office,24/12/2010,Professional & Admin Services.Facilities Man Serv - ADMN,CPG - Crime & Policing Group,INTERSERVE FACILITIES MANAGEMENT,1877179,"776,513.25"
Home Office,Home Office,24/12/2010,Professional & Admin Services.Facilities Man Serv - ADMN,CPG - Crime & Policing Group,INTERSERVE FACILITIES MANAGEMENT,1877203,"649,793.72"
Home Office,Home Office,24/12/2010,Professional & Admin Services.Facilities Man Serv - ADMN,CPG - Crime & Policing Group,INTERSERVE FACILITIES MANAGEMENT,1877183,"562,161.47"
Home Office,Home Office,02/12/2010,Professional & Admin Services.Facilities Man Serv - ADMN,CPG - Crime & Policing Group,AMEY COMMUNITY,1862243,"389,044.99"
Home Office,Home Office,02/12/2010,Professional & Admin Services.Facilities Man Serv - ADMN,CPG - Crime & Policing Group,AMEY COMMUNITY,1862254,"377,677.90"
Home Office,Home Office,24/12/2010,Professional & Admin Services.Facilities Man Serv - ADMN,CPG - Crime & Policing Group,INTERSERVE FACILITIES MANAGEMENT,1877223,"266,203.91"
Home Office,Home Office,24/12/2010,Professional & Admin Services.Facilities Man Serv - ADMN,CPG - Crime & Policing Group,INTERSERVE FACILITIES MANAGEMENT,1877217,"108,759.69"
Home Office,Home Office,24/12/2010,Professional & Admin Services.Facilities Man Serv - ADMN,CPG - Crime & Policing Group,INTERSERVE FACILITIES MANAGEMENT,1877208,"96,519.07"
Home Office,Home Office,14/12/2010,Utilities.Electric utilities - ADMN,CPG - Crime & Policing Group,EDF ENERGY,1871806,"80,345.14"
Home Office,Home Office,24/12/2010,"Building, Construction Service.Planned Interior finish-ADMN",CPG - Crime & Policing Group,ANNES GATE PROPERTY PLC,1872942,"68,462.68"
Home Office,Home Office,24/12/2010,Professional & Admin Services.Facilities management services,CPG - Crime & Policing Group,ANNES GATE PROPERTY PLC,1872958,"30,325.74"
Home Office,Home Office,14/12/2010,ESTATES AND FACILITIES.RENT & RATES,CPG - Crime & Policing Group,DTZ DEBENHAM TIE LEUNG LTD,1871648,"5,413,416.82"
Home Office,Home Office,21/12/2010,ESTATES AND FACILITIES.RENT & RATES,CPG - Crime & Policing Group,DTZ DEBENHAM TIE LEUNG LTD,1877005,"2,324,988.70"
Home Office,Home Office,08/12/2010,ESTATES AND FACILITIES.RENT & RATES,CPG - Crime & Policing Group,DTZ DEBENHAM TIE LEUNG LTD,1867149,"220,565.66"
Home Office,Home Office,02/12/2010,"Building, Construction Service.Building ConstructionServ-PROG",CPG - Crime & Policing Group,AMEY COMMUNITY,1864342,"183,683.87"
Home Office,Home Office,02/12/2010,"Building, Construction Service.Building ConstructionServ-PROG",CPG - Crime & Policing Group,AMEY COMMUNITY,1863701,"136,992.75"
Home Office,Home Office,13/12/2010,"Building, Construction Service.Build a new structure (FA)",CPG - Crime & Policing Group,INTERSERVE FACILITIES MANAGEMENT,1870835,"131,328.90"
Home Office,Home Office,14/12/2010,"Building, Construction Service.Building ConstructionServ-PROG",CPG - Crime & Policing Group,AMEY COMMUNITY,1872690,"104,513.32"
Home Office,Home Office,22/12/2010,"Building, Construction Service.Building ConstructionServ-PROG",CPG - Crime & Policing Group,AMEY COMMUNITY,1877860,"94,224.66"
Home Office,Home Office,30/12/2010,"Building, Construction Service.Building ConstructionServ-PROG",CPG - Crime & Policing Group,AMEY COMMUNITY,1881454,"75,984.37"
Home Office,Home Office,02/12/2010,"Building, Construction Service.Building ConstructionServ-PROG",CPG - Crime & Policing Group,AMEY COMMUNITY,1864359,"64,012.26"
Home Office,Home Office,10/12/2010,"Building, Construction Service.Building ConstructionServ-PROG",CPG - Crime & Policing Group,INTERSERVE FACILITIES MANAGEMENT,1869332,"59,669.84"
Home Office,Home Office,30/12/2010,"Building, Construction Service.Building ConstructionServ-PROG",CPG - Crime & Policing Group,AMEY COMMUNITY,1882149,"49,495.07"
Home Office,Home Office,02/12/2010,"Building, Construction Service.Building ConstructionServ-PROG",CPG - Crime & Policing Group,AMEY COMMUNITY,1864316,"48,664.80"
Home Office,Home Office,02/12/2010,"Building, Construction Service.Building ConstructionServ-PROG",CPG - Crime & Policing Group,AMEY COMMUNITY,1864354,"44,461.99"
Home Office,Home Office,30/12/2010,"Building, Construction Service.Building ConstructionServ-PROG",CPG - Crime & Policing Group,AMEY COMMUNITY,1881388,"41,376.33"
Home Office,Home Office,22/12/2010,Professional & Admin Services.Consultant - Imp & Del - PROG,CPG - Crime & Policing Group,DTZ DEBENHAM TIE LEUNG LTD,1877491,"41,361.47"
Home Office,Home Office,31/12/2010,"Building, Construction Service.Build a new structure (FA)",CPG - Crime & Policing Group,INTERSERVE FACILITIES MANAGEMENT,1882827,"41,021.41"
Home Office,Home Office,30/12/2010,"Building, Construction Service.Building ConstructionServ-PROG",CPG - Crime & Policing Group,AMEY COMMUNITY,1881405,"35,800.69"
Home Office,Home Office,07/12/2010,"Building, Construction Service.Build a new structure (FA)",CPG - Crime & Policing Group,INTERSERVE FACILITIES MANAGEMENT,1866351,"30,718.54"
Home Office,Home Office,30/12/2010,"Building, Construction Service.Building ConstructionServ-PROG",CPG - Crime & Policing Group,AMEY COMMUNITY,1882182,"30,462.22"
Home Office,Home Office,16/12/2010,"Transport, Storage & Mail Serv.Mailing, Mail Delivery Service",CPG - Crime & Policing Group,CENTRAL DESPATCH,1874813,"26,472.29"
Home Office,Home Office,20/12/2010,Politics & Civic Affairs.Human aid & relief Sect 4,CPG - Crime & Policing Group,VINCENT INVESTMENT PROPERTIES,1725658,"455,689.25"
Home Office,Home Office,02/12/2010,Public Utilities.Service Charges - ADMN,CPG - Crime & Policing Group,IDENTITY & PASSPORTS SERVICE,1861893,"97,230.99"
Home Office,Home Office,02/12/2010,Public Utilities.Service Charges - ADMN,CPG - Crime & Policing Group,IDENTITY & PASSPORTS SERVICE,1861891,"31,827.85"
Home Office,Home Office,21/12/2010,"Building, Construction Service.General building construction",CPG - Crime & Policing Group,NEW HALL PLACE UNIT TRUST,1872808,"831,564.22"
Home Office,Home Office,15/12/2010,"Building, Construction Service.General building construction",CPG - Crime & Policing Group,MANSELL CONSTRUCTION SERVICES LTD,1866500,"376,617.12"
Home Office,Home Office,02/12/2010,"Building, Construction Service.Building ConstructionServ-PROG",CPG - Crime & Policing Group,AMEY COMMUNITY,1864338,"209,123.89"
Home Office,Home Office,21/12/2010,Professional & Admin Services.Consultant - Imp & Del - PROG,CPG - Crime & Policing Group,JACOBS ENGINEERING UK,1862892,"57,502.73"
Home Office,Home Office,24/12/2010,"Building, Construction Service.General building construction",CPG - Crime & Policing Group,H WATERHOUSE & SONS (WAKEFIELD) LTD,1878448,"28,444.76"
Home Office,Home Office,13/12/2010,ESTATES AND FACILITIES.RENT & RATES,CPG - Crime & Policing Group,DTZ DEBENHAM TIE LEUNG LTD,1871488,"8,626,249.74"
Home Office,Home Office,21/12/2010,ESTATES AND FACILITIES.RENT & RATES,CPG - Crime & Policing Group,DTZ DEBENHAM TIE LEUNG LTD,1877001,"6,318,778.81"
Home Office,Home Office,22/12/2010,"Building, Construction Service.Building ConstructionServ-PROG",CPG - Crime & Policing Group,AMEY COMMUNITY,1877861,"188,646.90"
Home Office,Home Office,02/12/2010,"Building, Construction Service.Building ConstructionServ-PROG",CPG - Crime & Policing Group,AMEY COMMUNITY,1863591,"58,706.02"
Home Office,Home Office,14/12/2010,"Building, Construction Service.Building ConstructionServ-PROG",CPG - Crime & Policing Group,AMEY COMMUNITY,1872691,"34,412.69"
Home Office,Home Office,08/12/2010,ESTATES AND FACILITIES.RENT & RATES,CPG - Crime & Policing Group,DTZ DEBENHAM TIE LEUNG LTD,1867524,"32,726.52"
Home Office,Home Office,13/12/2010,"Building, Construction Service.Build a new structure (FA)",CPG - Crime & Policing Group,INTERSERVE FACILITIES MANAGEMENT,1871485,"26,381.57"
Home Office,Home Office,22/12/2010,"Building, Construction Service.General building construction",CPG - Crime & Policing Group,ATOS ORIGIN IT SERVICES UK LIMITED- MEDICAL SERVICES,1877171,"80,663.75"
Home Office,Home Office,08/12/2010,Professional & Admin Services.Facilities Man Serv - ADMN,CPG - Crime & Policing Group,ATKINS LTD,1866047,"191,303.92"
Home Office,Home Office,30/12/2010,"Building, Construction Service.Building ConstructionServ-ADMN",CPG - Crime & Policing Group,AMEY COMMUNITY,1881463,"58,561.81"
Home Office,Home Office,30/12/2010,"Building, Construction Service.Building ConstructionServ-ADMN",CPG - Crime & Policing Group,AMEY COMMUNITY,1882159,"30,212.56"
Home Office,Home Office,15/12/2010,Management & Admin Serv.Temp IT N/w Specialists - ADMN,CPG - Crime & Policing Group,ADVANTAGE TECHNICAL RESOURCING,1862046,"26,398.06"
Home Office,Home Office,31/12/2010,Management & Admin Serv.Temp IT S/w Developers - ADMN,CPG - Crime & Policing Group,ADVANTAGE TECHNICAL RESOURCING,1882595,"28,762.83"
Home Office,Home Office,07/12/2010,Management & Admin Serv.Temp IT N/w Specialists - ADMN,CPG - Crime & Policing Group,NES IT,1866508,"55,930.00"
Home Office,Home Office,22/12/2010,"IT, Broadcasting & Telecomms.Sirius - Other Services - ADMN",CPG - Crime & Policing Group,ATOS ORIGIN IT SERVICES UK LIMITED- MEDICAL SERVICES,1836654,"59,196.50"
Home Office,Home Office,22/12/2010,"IT, Broadcasting & Telecomms.Sirius - Other Services - ADMN",CPG - Crime & Policing Group,ATOS ORIGIN IT SERVICES UK LIMITED- MEDICAL SERVICES,1875547,"59,070.78"
Home Office,Home Office,01/12/2010,"IT, Broadcasting & Telecomms.Sirius - Other Services - ADMN",CPG - Crime & Policing Group,FUJITSU SERVICES (ALCEDO) LTD,1839603,"7,352,656.74"
Home Office,Home Office,23/12/2010,"IT, Broadcasting & Telecomms.Sirius - Other Services - ADMN",CPG - Crime & Policing Group,FUJITSU SERVICES (ALCEDO) LTD,1878148,"7,347,108.16"
Home Office,Home Office,21/12/2010,"IT, Broadcasting & Telecomms.IT Maintenance - ADMN",CPG - Crime & Policing Group,FUJITSU SERVICES (ALCEDO) LTD,1851440,"2,078,399.34"
Home Office,Home Office,23/12/2010,"IT, Broadcasting & Telecomms.IT Maintenance - ADMN",CPG - Crime & Policing Group,FUJITSU SERVICES (ALCEDO) LTD,1822004,"1,714,496.99"
Home Office,Home Office,10/12/2010,"IT, Broadcasting & Telecomms.IT Maintenance - ADMN",CPG - Crime & Policing Group,ATOS ORIGIN IT SERVICES UK LIMITED- MEDICAL SERVICES,1858036,"643,029.33"
Home Office,Home Office,24/12/2010,"IT, Broadcasting & Telecomms.IT Maintenance - ADMN",CPG - Crime & Policing Group,ATOS ORIGIN IT SERVICES UK LIMITED- MEDICAL SERVICES,1877910,"411,250.00"
Home Office,Home Office,01/12/2010,"IT, Broadcasting & Telecomms.Sirius - Other Services - ADMN",CPG - Crime & Policing Group,FUJITSU SERVICES (ALCEDO) LTD,1841766,"393,114.13"
Home Office,Home Office,10/12/2010,"IT, Broadcasting & Telecomms.IT Maintenance - ADMN",CPG - Crime & Policing Group,HEWLETT PACKARD,1851494,"215,021.30"
Home Office,Home Office,24/12/2010,"IT, Broadcasting & Telecomms.IT Maintenance - ADMN",CPG - Crime & Policing Group,ATOS ORIGIN IT SERVICES UK LIMITED- MEDICAL SERVICES,1877913,"146,697.58"
Home Office,Home Office,06/12/2010,"IT, Broadcasting & Telecomms.IT Run Cost � Info Support",CPG - Crime & Policing Group,SAVVIS UK LTD,1848802,"142,458.49"
Home Office,Home Office,24/12/2010,"IT, Broadcasting & Telecomms.IT Maintenance - ADMN",CPG - Crime & Policing Group,ATOS ORIGIN IT SERVICES UK LIMITED- MEDICAL SERVICES,1877908,"117,500.00"
Home Office,Home Office,06/12/2010,"IT, Broadcasting & Telecomms.IT Run Cost � Info Support",CPG - Crime & Policing Group,SAVVIS UK LTD,1848890,"59,224.29"
Home Office,Home Office,06/12/2010,"IT, Broadcasting & Telecomms.IT Run Cost � Info Support",CPG - Crime & Policing Group,SAVVIS UK LTD,1848906,"36,169.86"
Home Office,Home Office,31/12/2010,"IT, Broadcasting & Telecomms.IT Run Costs Other - ADMN",CPG - Crime & Policing Group,VODAFONE LTD,1882434,"26,437.50"
Home Office,Home Office,07/12/2010,"Science, Technical & Research.Computer services - PROG",CPG - Crime & Policing Group,ATOS ORIGIN IT SERVICES UK LIMITED- MEDICAL SERVICES,1858090,"43,732.33"
Home Office,Home Office,07/12/2010,"Science, Technical & Research.Computer services - PROG",CPG - Crime & Policing Group,ATOS ORIGIN IT SERVICES UK LIMITED- MEDICAL SERVICES,1858051,"27,610.15"
Home Office,Home Office,14/12/2010,"IT, Broadcasting & Telecomms.IT Running Cost - Maint - PROG",CPG - Crime & Policing Group,ATOS ORIGIN IT SERVICES UK LIMITED- MEDICAL SERVICES,1857918,"1,832,229.54"
Home Office,Home Office,24/12/2010,"IT, Broadcasting & Telecomms.IT Run Costs Other - ADMN",CPG - Crime & Policing Group,FUJITSU SERVICES LTD,1864231,"674,273.17"
Home Office,Home Office,10/12/2010,IT & Telecommunications.IT & Telecommunications,CPG - Crime & Policing Group,CABLE AND WIRELESS,1868297,"439,972.38"
Home Office,Home Office,10/12/2010,Utilities.Small Scale Radio Sys - PROG,CPG - Crime & Policing Group,RADIO SYSTEMS LTD,1843358,"28,088.38"
Home Office,Home Office,08/12/2010,"IT, Broadcasting & Telecomms.Software - ADMN",CPG - Crime & Policing Group,FUJITSU SERVICES (ALCEDO) LTD,1687697,"1,007,680.00"
Home Office,Home Office,24/12/2010,"IT, Broadcasting & Telecomms.Software - ADMN",CPG - Crime & Policing Group,FUJITSU SERVICES LTD,1864245,"79,660.30"
Home Office,Home Office,24/12/2010,IT & Telecommunications.IT & Telecommunications,CPG - Crime & Policing Group,FUJITSU SERVICES (ALCEDO) LTD,1864254,"72,351.80"
Home Office,Home Office,24/12/2010,"IT, Broadcasting & Telecomms.Software - ADMN",CPG - Crime & Policing Group,FUJITSU SERVICES (ALCEDO) LTD,1864243,"60,827.40"
Home Office,Home Office,24/12/2010,"IT, Broadcasting & Telecomms.Sirius - Applications",CPG - Crime & Policing Group,FUJITSU SERVICES (ALCEDO) LTD,1864246,"89,408.47"
Home Office,Home Office,24/12/2010,"Transport, Storage & Mail Serv.File (Archive) Storage - ADMN",CPG - Crime & Policing Group,TNT UK LIMITED,1880090,"36,617.19"
Home Office,Home Office,24/12/2010,Storage & Mail Services.Messenger & Reception Services,OSCT - Office of Security & Counter Terrorism,CT CENTRE (MOD) T/A DSTL,1879305,"531,400.42"
Home Office,Home Office,24/12/2010,IT & Telecommunications Equip.Hardware adapters - ADMN,OSCT - Office of Security & Counter Terrorism,FUJITSU SERVICES (ALCEDO) LTD,1864257,"284,181.21"
Home Office,Home Office,02/12/2010,Healthcare Services.Healthcare Services - PROG,OSCT - Office of Security & Counter Terrorism,CT CENTRE (MOD) T/A DSTL,1857759,"90,440.81"
Home Office,Home Office,03/12/2010,Professional & Admin Services.Consultant - Imp & Del - PROG,OSCT - Office of Security & Counter Terrorism,KPMG,1864521,"54,341.40"
Home Office,Home Office,03/12/2010,Professional & Admin Services.Consultant - Imp & Del - PROG,OSCT - Office of Security & Counter Terrorism,KPMG,1864528,"49,704.85"
Home Office,Home Office,23/12/2010,Professional & Admin Services.Business admin services - PROG,OSCT - Office of Security & Counter Terrorism,LONDON BOROUGH OF NEWHAM,1878306,"46,401.92"
Home Office,Home Office,02/12/2010,"Science, Technical & Research.Testing",OSCT - Office of Security & Counter Terrorism,CT CENTRE (MOD) T/A DSTL,1863181,"32,884.73"
Home Office,Home Office,08/12/2010,Professional & Admin Services.Seconded in Staff costs - PROG,OSCT - Office of Security & Counter Terrorism,CITY OF LONDON POLICE FORCE,1867230,"31,234.68"
Home Office,Home Office,14/12/2010,"Clothes, shoes & Personal Care.Clothing - PROG",OSCT - Office of Security & Counter Terrorism,REMPLOY LTD,1871482,"25,819.92"
Home Office,IPCC - Independent Police Complaints Commision,13/12/2010,IT,IPCC - Independent Police Complaints Commision,STERIA,RCT0034635,"321,303.00"
Home Office,IPCC - Independent Police Complaints Commision,13/12/2010,IT,IPCC - Independent Police Complaints Commision,STERIA,RCT0034636,"317,778.00"
Home Office,IPCC - Independent Police Complaints Commision,22/12/2010,Facilities,IPCC - Independent Police Complaints Commision,EASTERN BUSINESS PARK,RCT0034757,"32,084.55"
Home Office,IPCC - Independent Police Complaints Commision,22/12/2010,Facilities,IPCC - Independent Police Complaints Commision,OMD SERVICES LIMITED,RCT0034769,"58,924.54"
Home Office,IPCC - Independent Police Complaints Commision,22/12/2010,Facilities,IPCC - Independent Police Complaints Commision,HARTNELL TAYLOR COOK LLP,RCT0034759,"42,812.59"
Home Office,IPCC - Independent Police Complaints Commision,22/12/2010,Facilities,IPCC - Independent Police Complaints Commision,OMD SERVICES LIMITED,RCT0034769,"46,769.16"
Home Office,IPCC - Independent Police Complaints Commision,22/12/2010,Facilities,IPCC - Independent Police Complaints Commision,OMD SERVICES LIMITED,RCT0034769,"328,930.15"
Home Office,IPCC - Independent Police Complaints Commision,22/12/2010,Facilities,IPCC - Independent Police Complaints Commision,OMD SERVICES LIMITED,RCT0034769,"258,033.60"
Home Office,ISA - Independent Safeguarding Authority,15/12/2010,Rent,Finance & Corporate Resources,City & Northern Ltd,2909,"137,267.61"
Home Office,ISA - Independent Safeguarding Authority,22/12/2010,NPIA,Operations,NPIA,2914,"288,000.00"
Home Office,SIA - Security Industry Authority,15/12/2010,CRB Disclosures,Licensing,CRB,CCRB01,"167,211.00"
Home Office,SIA - Security Industry Authority,22/12/2010,Syntegra,Licensing,BT Syntegra,CSYN01,"456,236.39"
Home Office,NPIA - National Policing Improvement Agency,01/12/2010,Airwave Core Service Charge,Operations Directorate,Airwave Solutions Ltd,5100048272,"14,764,483.34"
Home Office,NPIA - National Policing Improvement Agency,01/12/2010,Airwave Core Service Charge,Operations Directorate,Airwave Solutions Ltd,5100048273,"224,932.61"
Home Office,NPIA - National Policing Improvement Agency,01/12/2010,IT software,Operations Directorate,Oracle UK,5100048737,"21,890.65"
Home Office,NPIA - National Policing Improvement Agency,01/12/2010,IT software,Operations Directorate,Oracle UK,5100048737,554.93
Home Office,NPIA - National Policing Improvement Agency,01/12/2010,IT software,Operations Directorate,Oracle UK,5100048737,"118,683.20"
Home Office,NPIA - National Policing Improvement Agency,01/12/2010,IT software,Operations Directorate,Oracle UK,5100048737,"3,008.65"
Home Office,NPIA - National Policing Improvement Agency,01/12/2010,Management consultancy,Information & Communications Technology & Science Directorate,Price Waterhouse Coopers,5100048803,"50,000.00"
Home Office,NPIA - National Policing Improvement Agency,01/12/2010,Management consultancy,Information & Communications Technology & Science Directorate,Price Waterhouse Coopers,5100048803,875
Home Office,NPIA - National Policing Improvement Agency,01/12/2010,Management consultancy,Information & Communications Technology & Science Directorate,Price Waterhouse Coopers,5100048803,"32,607.69"
Home Office,NPIA - National Policing Improvement Agency,01/12/2010,Management consultancy,Information & Communications Technology & Science Directorate,Price Waterhouse Coopers,5100048803,525
Home Office,NPIA - National Policing Improvement Agency,01/12/2010,Management consultancy,Information & Communications Technology & Science Directorate,Price Waterhouse Coopers,5100048804,"-50,000.00"
Home Office,NPIA - National Policing Improvement Agency,01/12/2010,Management consultancy,Information & Communications Technology & Science Directorate,Price Waterhouse Coopers,5100048804,-875
Home Office,NPIA - National Policing Improvement Agency,01/12/2010,Management consultancy,Information & Communications Technology & Science Directorate,Price Waterhouse Coopers,5100048804,"-32,607.69"
Home Office,NPIA - National Policing Improvement Agency,01/12/2010,Management consultancy,Information & Communications Technology & Science Directorate,Price Waterhouse Coopers,5100048804,-525
Home Office,NPIA - National Policing Improvement Agency,01/12/2010,Management consultancy,Information & Communications Technology & Science Directorate,Price Waterhouse Coopers,5100048805,"50,000.00"
Home Office,NPIA - National Policing Improvement Agency,01/12/2010,Management consultancy,Information & Communications Technology & Science Directorate,Price Waterhouse Coopers,5100048805,875
Home Office,NPIA - National Policing Improvement Agency,01/12/2010,Management consultancy,Information & Communications Technology & Science Directorate,Price Waterhouse Coopers,5100048805,"30,000.00"
Home Office,NPIA - National Policing Improvement Agency,01/12/2010,Management consultancy,Information & Communications Technology & Science Directorate,Price Waterhouse Coopers,5100048805,525
Home Office,NPIA - National Policing Improvement Agency,01/12/2010,Land and Buildings maintenance,Resources Directorate,Ellis and Co,1900058853,"115,649.67"
Home Office,NPIA - National Policing Improvement Agency,01/12/2010,Land and Buildings maintenance,Resources Directorate,GallifordTry Construction Ltd,1900058854,"45,668.40"
Home Office,NPIA - National Policing Improvement Agency,01/12/2010,Agency staff,Information & Communications Technology & Science Directorate,AMTEC Consulting PLC,5100048880,"21,600.00"
Home Office,NPIA - National Policing Improvement Agency,08/12/2010,Rent/lease - Offices,Resources Directorate,Executive Communication Centres,5100048889,"24,064.13"
Home Office,NPIA - National Policing Improvement Agency,08/12/2010,FM Costs,Resources Directorate,Executive Communication Centres,5100048889,"8,140.00"
Home Office,NPIA - National Policing Improvement Agency,08/12/2010,Other secondees - Basic salaries,Policing Policy and Practice Directorate ,IDeA Publications London,5100048960,"18,016.00"
Home Office,NPIA - National Policing Improvement Agency,08/12/2010,Other secondees - Basic salaries,Policing Policy and Practice Directorate ,IDeA Publications London,5100048960,"1,638.88"
Home Office,NPIA - National Policing Improvement Agency,08/12/2010,Other secondees - Basic salaries,Policing Policy and Practice Directorate ,IDeA Publications London,5100048960,"2,522.24"
Home Office,NPIA - National Policing Improvement Agency,08/12/2010,FM Costs,Resources Directorate,Wyboston Lakes Ltd,5100048964,"93,758.25"
Home Office,NPIA - National Policing Improvement Agency,08/12/2010,FM Costs,Resources Directorate,Wyboston Lakes Ltd,5100048964,64.14
Home Office,NPIA - National Policing Improvement Agency,20/12/2010,IT consultancy,Policing Policy and Practice Directorate ,Steria Ltd,5100048970,"46,592.00"
Home Office,NPIA - National Policing Improvement Agency,09/12/2010,IT Information Support,Information & Communications Technology & Science Directorate,Siemens Enterprise Comm Ltd,5100048974,"49,980.00"
Home Office,NPIA - National Policing Improvement Agency,06/12/2010,IT Managed Services,Information & Communications Technology & Science Directorate,Siemens Enterprise Comm Ltd,5100048981,"173,250.00"
Home Office,NPIA - National Policing Improvement Agency,08/12/2010,Other consultancy,Operations Directorate,Red-M Wireless Ltd,5100049036,"26,487.90"
Home Office,NPIA - National Policing Improvement Agency,15/12/2010,IT Managed Services,Information & Communications Technology & Science Directorate,Logica CMG UK Ltd,5100049049,"277,000.00"
Home Office,NPIA - National Policing Improvement Agency,08/12/2010,Mobile call charges,Operations Directorate,SunGard Public Sector Ltd,1700004404,"-584,336.07"
Home Office,NPIA - National Policing Improvement Agency,08/12/2010,Mobile call charges,Operations Directorate,SunGard Public Sector Ltd,1700004405,"-583,924.94"
Home Office,NPIA - National Policing Improvement Agency,08/12/2010,Mobile call charges,Operations Directorate,SunGard Public Sector Ltd,1700004406,"-584,723.17"
Home Office,NPIA - National Policing Improvement Agency,08/12/2010,Mobile call charges,Operations Directorate,SunGard Public Sector Ltd,1900058931,"584,336.07"
Home Office,NPIA - National Policing Improvement Agency,08/12/2010,Mobile call charges,Operations Directorate,SunGard Public Sector Ltd,1900058932,"583,924.94"
Home Office,NPIA - National Policing Improvement Agency,08/12/2010,Mobile call charges,Operations Directorate,SunGard Public Sector Ltd,1900058933,"584,723.17"
Home Office,NPIA - National Policing Improvement Agency,13/12/2010,IT Information Support,Operations Directorate,Northgate Information Solutions UK,5100049084,"59,449.00"
Home Office,NPIA - National Policing Improvement Agency,08/12/2010,IT software,Information & Communications Technology & Science Directorate,Northgate Information Solutions UK,5100049085,"25,000.00"
Home Office,NPIA - National Policing Improvement Agency,08/12/2010,IT software,Operations Directorate,Cable & Wireless Communications,5100049110,"3,738.00"
Home Office,NPIA - National Policing Improvement Agency,08/12/2010,IT maintenance,Operations Directorate,Cable & Wireless Communications,5100049110,"6,102.00"
Home Office,NPIA - National Policing Improvement Agency,08/12/2010,IT Information Support,Operations Directorate,Cable & Wireless Communications,5100049110,"87,935.00"
Home Office,NPIA - National Policing Improvement Agency,08/12/2010,IT Information Support,Operations Directorate,Cable & Wireless Communications,5100049113,"52,725.00"
Home Office,NPIA - National Policing Improvement Agency,08/12/2010,IT Managed Services,People & Development Directorate,Cable & Wireless Communications,5100049118,"23,040.00"
Home Office,NPIA - National Policing Improvement Agency,08/12/2010,IT Managed Services,People & Development Directorate,Cable & Wireless Communications,5100049118,18
Home Office,NPIA - National Policing Improvement Agency,08/12/2010,IT Information Support,Operations Directorate,Cable & Wireless Communications,5100049119,187.5
Home Office,NPIA - National Policing Improvement Agency,08/12/2010,IT Information Support,Operations Directorate,Cable & Wireless Communications,5100049119,"1,900.00"
Home Office,NPIA - National Policing Improvement Agency,08/12/2010,IT Information Support,Operations Directorate,Cable & Wireless Communications,5100049119,"6,989.00"
Home Office,NPIA - National Policing Improvement Agency,08/12/2010,IT Information Support,Operations Directorate,Cable & Wireless Communications,5100049119,"2,250.00"
Home Office,NPIA - National Policing Improvement Agency,08/12/2010,IT Information Support,Operations Directorate,Cable & Wireless Communications,5100049119,"4,000.00"
Home Office,NPIA - National Policing Improvement Agency,08/12/2010,IT Information Support,Operations Directorate,Cable & Wireless Communications,5100049119,"3,515.00"
Home Office,NPIA - National Policing Improvement Agency,08/12/2010,IT Information Support,Operations Directorate,Cable & Wireless Communications,5100049119,"3,840.00"
Home Office,NPIA - National Policing Improvement Agency,08/12/2010,IT Information Support,Operations Directorate,Cable & Wireless Communications,5100049119,"3,600.00"
Home Office,NPIA - National Policing Improvement Agency,08/12/2010,IT Information Support,Operations Directorate,Cable & Wireless Communications,5100049119,"2,000.00"
Home Office,NPIA - National Policing Improvement Agency,08/12/2010,IT Information Support,Operations Directorate,Cable & Wireless Communications,5100049119,"1,733.00"
Home Office,NPIA - National Policing Improvement Agency,08/12/2010,IT Information Support,Operations Directorate,Cable & Wireless Communications,5100049119,-0.09
Home Office,NPIA - National Policing Improvement Agency,13/12/2010,Electricity,Resources Directorate,EDF Energy,1900058951,"30,491.82"
Home Office,NPIA - National Policing Improvement Agency,13/12/2010,IT software,Operations Directorate,SunGard Public Sector Ltd,5100049140,"146,498.00"
Home Office,NPIA - National Policing Improvement Agency,15/12/2010,Stamford Service Charge,Operations Directorate,Airwave Solutions Ltd,5100049168,"110,668.96"
Home Office,NPIA - National Policing Improvement Agency,15/12/2010,Airwave in London Underground Service Charge,Operations Directorate,Airwave Solutions Ltd,5100049168,"68,641.15"
Home Office,NPIA - National Policing Improvement Agency,15/12/2010,Airwave in London Underground Service Charge,Operations Directorate,Airwave Solutions Ltd,5100049168,"21,098.56"
Home Office,NPIA - National Policing Improvement Agency,15/12/2010,Schengen Service Charge,Operations Directorate,Airwave Solutions Ltd,5100049168,"8,255.81"
Home Office,NPIA - National Policing Improvement Agency,15/12/2010,Firewall Service Charge,Operations Directorate,Airwave Solutions Ltd,5100049168,"25,065.75"
Home Office,NPIA - National Policing Improvement Agency,15/12/2010,Airwave Channel Tunnel Service Charge,Operations Directorate,Airwave Solutions Ltd,5100049169,"24,335.91"
Home Office,NPIA - National Policing Improvement Agency,15/12/2010,Airwave in London Underground Service Charge,Operations Directorate,Airwave Solutions Ltd,5100049170,"366,626.25"
Home Office,NPIA - National Policing Improvement Agency,15/12/2010,Airwave Cluster Hot Standby Service Charge,Operations Directorate,Airwave Solutions Ltd,5100049171,"636,906.75"
Home Office,NPIA - National Policing Improvement Agency,15/12/2010,Airwave Ground Based Network Resilience Serv. Chg,Operations Directorate,Airwave Solutions Ltd,5100049173,"585,739.14"
Home Office,NPIA - National Policing Improvement Agency,15/12/2010,Airwave Cluster Hot Standby Service Charge,Operations Directorate,Airwave Solutions Ltd,5100049174,"88,333.33"
Home Office,NPIA - National Policing Improvement Agency,09/12/2010,NPIA Subs to professional bodies,CEO Directorate,Lexis Nexis,5100049180,"24,065.63"
Home Office,NPIA - National Policing Improvement Agency,09/12/2010,NPIA Subs to professional bodies,CEO Directorate,Lexis Nexis,5100049180,380.83
Home Office,NPIA - National Policing Improvement Agency,15/12/2010,Management consultancy,People & Development Directorate,Process Evolution,5100049237,"23,339.75"
Home Office,NPIA - National Policing Improvement Agency,13/12/2010,IT software,Operations Directorate,SunGard Public Sector Ltd,5100049268,"584,724.00"
Home Office,NPIA - National Policing Improvement Agency,13/12/2010,IT software,Operations Directorate,SunGard Public Sector Ltd,5100049269,"584,724.00"
Home Office,NPIA - National Policing Improvement Agency,13/12/2010,IT software,Operations Directorate,SunGard Public Sector Ltd,5100049270,"584,724.00"
Home Office,NPIA - National Policing Improvement Agency,13/12/2010,IT software,Operations Directorate,SunGard Public Sector Ltd,5100049271,"584,724.00"
Home Office,NPIA - National Policing Improvement Agency,13/12/2010,IT software,Operations Directorate,SunGard Public Sector Ltd,5100049272,"582,032.73"
Home Office,NPIA - National Policing Improvement Agency,13/12/2010,IT software,Operations Directorate,SunGard Public Sector Ltd,5100049273,"584,724.00"
Home Office,NPIA - National Policing Improvement Agency,13/12/2010,Telephone charges,Information & Communications Technology & Science Directorate,BT Plc,1900058645,"46,091.62"
Home Office,NPIA - National Policing Improvement Agency,13/12/2010,IT software,Operations Directorate,SunGard Public Sector Ltd,5100049274,"15,131.66"
Home Office,NPIA - National Policing Improvement Agency,13/12/2010,IT software,Operations Directorate,SunGard Public Sector Ltd,5100049274,"15,131.66"
Home Office,NPIA - National Policing Improvement Agency,13/12/2010,IT software,Operations Directorate,SunGard Public Sector Ltd,5100049274,"15,131.66"
Home Office,NPIA - National Policing Improvement Agency,13/12/2010,IT software,Operations Directorate,SunGard Public Sector Ltd,5100049274,"15,131.66"
Home Office,NPIA - National Policing Improvement Agency,13/12/2010,IT software,Operations Directorate,SunGard Public Sector Ltd,5100049274,"15,131.66"
Home Office,NPIA - National Policing Improvement Agency,13/12/2010,IT software,Operations Directorate,SunGard Public Sector Ltd,5100049274,"15,131.66"
Home Office,NPIA - National Policing Improvement Agency,22/12/2010,IT software,Operations Directorate,Oracle UK,5100049294,"12,134.35"
Home Office,NPIA - National Policing Improvement Agency,22/12/2010,IT software,Operations Directorate,Oracle UK,5100049294,"2,123.51"
Home Office,NPIA - National Policing Improvement Agency,22/12/2010,IT software,Operations Directorate,Oracle UK,5100049294,"25,077.64"
Home Office,NPIA - National Policing Improvement Agency,22/12/2010,IT software,Operations Directorate,Oracle UK,5100049294,"4,388.60"
Home Office,NPIA - National Policing Improvement Agency,13/12/2010,Electricity,Resources Directorate,EDF Energy,1700004414,"-34,460.07"
Home Office,NPIA - National Policing Improvement Agency,13/12/2010,Electricity,Resources Directorate,EDF Energy,1700004415,"-24,002.35"
Home Office,NPIA - National Policing Improvement Agency,13/12/2010,Electricity,Resources Directorate,EDF Energy,1900058897,"35,963.96"
Home Office,NPIA - National Policing Improvement Agency,15/12/2010,IT Information Support,Operations Directorate,SunGard Public Sector Ltd,1700004433,"-2,955,140.88"
Home Office,NPIA - National Policing Improvement Agency,15/12/2010,IT Information Support,Operations Directorate,SunGard Public Sector Ltd,1900059055,"590,768.20"
Home Office,NPIA - National Policing Improvement Agency,15/12/2010,IT Information Support,Operations Directorate,SunGard Public Sector Ltd,1900059056,"591,566.43"
Home Office,NPIA - National Policing Improvement Agency,15/12/2010,IT Information Support,Operations Directorate,SunGard Public Sector Ltd,1900059057,"590,060.49"
Home Office,NPIA - National Policing Improvement Agency,15/12/2010,IT Information Support,Operations Directorate,SunGard Public Sector Ltd,1900059058,"591,566.43"
Home Office,NPIA - National Policing Improvement Agency,15/12/2010,IT Information Support,Operations Directorate,SunGard Public Sector Ltd,1900059059,"591,179.33"
Home Office,NPIA - National Policing Improvement Agency,17/12/2010,Other consultancy,Information & Communications Technology & Science Directorate,Logica CMG UK Ltd,5100049410,"63,369.00"
Home Office,NPIA - National Policing Improvement Agency,17/12/2010,Other consultancy,Information & Communications Technology & Science Directorate,Logica CMG UK Ltd,5100049410,"1,922.82"
Home Office,NPIA - National Policing Improvement Agency,17/12/2010,Rent of telephone exchange,Information & Communications Technology & Science Directorate,Cable & Wireless Communications,1900058936,"23,529.69"
Home Office,NPIA - National Policing Improvement Agency,23/12/2010,Telephone charges,Resources Directorate,Specialist Computer Centres PLC,5100046487,"29,830.69"
Home Office,NPIA - National Policing Improvement Agency,23/12/2010,Telephone charges,Resources Directorate,Specialist Computer Centres PLC,5100046487,736.2
Home Office,NPIA - National Policing Improvement Agency,23/12/2010,Telephone charges,Resources Directorate,Specialist Computer Centres PLC,5100046487,12.88
Home Office,NPIA - National Policing Improvement Agency,23/12/2010,Telephone charges,Resources Directorate,Specialist Computer Centres PLC,5100046487,736.2
Home Office,NPIA - National Policing Improvement Agency,23/12/2010,Telephone charges,Resources Directorate,Specialist Computer Centres PLC,5100046487,12.88
Home Office,NPIA - National Policing Improvement Agency,23/12/2010,Telephone charges,Resources Directorate,Specialist Computer Centres PLC,5100046487,"1,110.42"
Home Office,NPIA - National Policing Improvement Agency,23/12/2010,Telephone charges,Resources Directorate,Specialist Computer Centres PLC,5100046487,19.43
Home Office,NPIA - National Policing Improvement Agency,23/12/2010,Telephone charges,Resources Directorate,Specialist Computer Centres PLC,5100046487,7.7
Home Office,NPIA - National Policing Improvement Agency,23/12/2010,Telephone charges,Resources Directorate,Specialist Computer Centres PLC,5100046487,0.13
Home Office,NPIA - National Policing Improvement Agency,23/12/2010,Telephone charges,Resources Directorate,Specialist Computer Centres PLC,5100046487,"7,772.00"
Home Office,NPIA - National Policing Improvement Agency,23/12/2010,Telephone charges,Resources Directorate,Specialist Computer Centres PLC,5100046487,136.01
Home Office,NPIA - National Policing Improvement Agency,23/12/2010,Telephone charges,Resources Directorate,Specialist Computer Centres PLC,5100046487,"9,284.00"
Home Office,NPIA - National Policing Improvement Agency,23/12/2010,Telephone charges,Resources Directorate,Specialist Computer Centres PLC,5100046487,162.47
Home Office,NPIA - National Policing Improvement Agency,23/12/2010,Telephone charges,Resources Directorate,Specialist Computer Centres PLC,5100046487,"4,090.00"
Home Office,NPIA - National Policing Improvement Agency,23/12/2010,Telephone charges,Resources Directorate,Specialist Computer Centres PLC,5100046487,71.57
Home Office,NPIA - National Policing Improvement Agency,23/12/2010,Telephone charges,Resources Directorate,Specialist Computer Centres PLC,5100046487,685.08
Home Office,NPIA - National Policing Improvement Agency,23/12/2010,Telephone charges,Resources Directorate,Specialist Computer Centres PLC,5100046487,11.99
Home Office,NPIA - National Policing Improvement Agency,23/12/2010,Telephone charges,Resources Directorate,Specialist Computer Centres PLC,5100046487,"41,718.00"
Home Office,NPIA - National Policing Improvement Agency,23/12/2010,Telephone charges,Resources Directorate,Specialist Computer Centres PLC,5100046487,730.08
Home Office,NPIA - National Policing Improvement Agency,20/12/2010,IT maintenance,Information & Communications Technology & Science Directorate,ROCK KITCHEN HARRIS LIMITED,5100049438,"120,000.00"
Home Office,NPIA - National Policing Improvement Agency,17/12/2010,IT Information Support,Operations Directorate,UNISYS Ltd,5100049471,"172,334.00"
Home Office,NPIA - National Policing Improvement Agency,17/12/2010,IT Information Support,Operations Directorate,UNISYS Ltd,5100049473,"172,334.00"
Home Office,NPIA - National Policing Improvement Agency,22/12/2010,IT software,People & Development Directorate,World Careers Network Plc,5100049478,"23,740.20"
Home Office,NPIA - National Policing Improvement Agency,22/12/2010,Other consultancy,CEO Directorate,Ipsos Mori,5100049512,"29,998.50"
Home Office,NPIA - National Policing Improvement Agency,20/12/2010,IT software,Operations Directorate,SunGard Public Sector Ltd,5100049515,"94,860.00"
Home Office,NPIA - National Policing Improvement Agency,22/12/2010,IT Hardware,Information & Communications Technology & Science Directorate,Logica CMG UK Ltd,5100049622,"353,562.40"
Home Office,NPIA - National Policing Improvement Agency,22/12/2010,IT Hardware,Information & Communications Technology & Science Directorate,Logica CMG UK Ltd,5100049623,"567,315.20"
Home Office,NPIA - National Policing Improvement Agency,22/12/2010,IT Hardware,Information & Communications Technology & Science Directorate,Logica CMG UK Ltd,5100049625,"581,853.60"
Home Office,NPIA - National Policing Improvement Agency,22/12/2010,IT Hardware,Information & Communications Technology & Science Directorate,Logica CMG UK Ltd,5100049626,"778,440.00"
Home Office,NPIA - National Policing Improvement Agency,22/12/2010,IT Hardware,Information & Communications Technology & Science Directorate,Logica CMG UK Ltd,5100049627,"390,007.80"
Home Office,IPS - Identity & Passport Services,21/12/2010,Passport Stationery,IPS - Identity & Passport Services,ADARE LTD,136569,"114,590.21"
Home Office,IPS - Identity & Passport Services,07/12/2010,Other Government Departments,IPS - Identity & Passport Services,Benefits Agency,136416,"112,770.52"
Home Office,IPS - Identity & Passport Services,10/12/2010,Contracted Staff,IPS - Identity & Passport Services,Capita Resourcing Ltd,136455,"36,413.74"
Home Office,IPS - Identity & Passport Services,21/12/2010,Contracted Staff,IPS - Identity & Passport Services,Capita Resourcing Ltd,136583,"69,755.08"
Home Office,IPS - Identity & Passport Services,17/12/2010,IT Admin & Hosting Support,IPS - Identity & Passport Services,Computercenter HQ,136524,"44,811.50"
Home Office,IPS - Identity & Passport Services,10/12/2010,IT Development,IPS - Identity & Passport Services,CSC COMPUTER SCIENCES LTD,136462,"2,107,826.11"
Home Office,IPS - Identity & Passport Services,17/12/2010,IT Development,IPS - Identity & Passport Services,CSC COMPUTER SCIENCES LTD,136527,"714,751.52"
Home Office,IPS - Identity & Passport Services,21/12/2010,IT Development,IPS - Identity & Passport Services,CSC COMPUTER SCIENCES LTD,136592,"955,285.64"
Home Office,IPS - Identity & Passport Services,10/12/2010,Passport Printing,IPS - Identity & Passport Services,De La Rue International Ltd,136463,"3,952,639.37"
Home Office,IPS - Identity & Passport Services,21/12/2010,Passport Printing,IPS - Identity & Passport Services,De La Rue International Ltd,136596,"209,034.08"
Home Office,IPS - Identity & Passport Services,03/12/2010,Consultancy & Professional Ser,IPS - Identity & Passport Services,ERNST & YOUNG LLP,136390,"346,004.48"
Home Office,IPS - Identity & Passport Services,17/12/2010,Legal Fees,IPS - Identity & Passport Services,Field Fisher Waterhouse LLP,136532,"85,780.44"
Home Office,IPS - Identity & Passport Services,03/12/2010,Passport Printing,IPS - Identity & Passport Services,Security Printing Systems Ltd,136395,"650,989.37"
Home Office,IPS - Identity & Passport Services,10/12/2010,Passport Printing,IPS - Identity & Passport Services,Security Printing Systems Ltd,136472,"439,381.26"
Home Office,IPS - Identity & Passport Services,17/12/2010,Passport Printing,IPS - Identity & Passport Services,Security Printing Systems Ltd,136534,"544,700.73"
Home Office,IPS - Identity & Passport Services,21/12/2010,Passport Printing,IPS - Identity & Passport Services,Security Printing Systems Ltd,136605,"313,077.83"
Home Office,IPS - Identity & Passport Services,03/12/2010,Other Government Departments,IPS - Identity & Passport Services,HOME OFFICE - AFU CASH MANAGEM,136396,"1,012,312.00"
Home Office,IPS - Identity & Passport Services,21/12/2010,Other Government Departments,IPS - Identity & Passport Services,HOME OFFICE - AFU CASH MANAGEM,136606,"385,903.35"
Home Office,IPS - Identity & Passport Services,21/12/2010,Other,IPS - Identity & Passport Services,INTERACTIVE INTELLIGENCE INC,136608,"25,872.31"
Home Office,IPS - Identity & Passport Services,10/12/2010,Market Research,IPS - Identity & Passport Services,Jigsaw Research Limited,136474,"45,190.51"
Home Office,IPS - Identity & Passport Services,21/12/2010,Rent,IPS - Identity & Passport Services,Jones Lang LASELLE,136611,"37,776.25"
Home Office,IPS - Identity & Passport Services,17/12/2010,Accommodation,IPS - Identity & Passport Services,LAMBERT SMITH HAMPTON,136542,"57,805.31"
Home Office,IPS - Identity & Passport Services,14/12/2010,Accommodation,IPS - Identity & Passport Services,MAPELEY ACQUISITION Co (2) LTD,136504,"174,337.10"
Home Office,IPS - Identity & Passport Services,14/12/2010,Contact Centre,IPS - Identity & Passport Services,MM TELEPERFORMANCE,136507,"41,960.66"
Home Office,IPS - Identity & Passport Services,21/12/2010,Contact Centre,IPS - Identity & Passport Services,MM TELEPERFORMANCE,136618,"125,988.18"
Home Office,IPS - Identity & Passport Services,21/12/2010,Consultancy & Professional Ser,IPS - Identity & Passport Services,PA Consulting Group,136623,"212,878.24"
Home Office,IPS - Identity & Passport Services,14/12/2010,Translation Services and Inter,IPS - Identity & Passport Services,PRESTIGE NETWORK LTD,136512,"25,464.45"
Home Office,IPS - Identity & Passport Services,17/12/2010,Accommodation,IPS - Identity & Passport Services,Prudential Property Investment,136553,"777,843.00"
Home Office,IPS - Identity & Passport Services,14/12/2010,Passport Processing,IPS - Identity & Passport Services,Siemens Business Services Ltd,136515,"69,685.31"
Home Office,IPS - Identity & Passport Services,10/12/2010,Passports - Secure Mail,IPS - Identity & Passport Services,SECURE MAIL SERVICES LIMITED,136484,"944,468.63"
Home Office,IPS - Identity & Passport Services,21/12/2010,Passport Processing,IPS - Identity & Passport Services,Steria Limited,136640,"952,701.75"
Home Office,IPS - Identity & Passport Services,03/12/2010,IT Development,IPS - Identity & Passport Services,Thales,136409,"642,921.23"
Home Office,IPS - Identity & Passport Services,17/12/2010,Accommodation,IPS - Identity & Passport Services,WH 101 OLD HALL STREET LTD,136564,"414,761.49"
Home Office,SOCA - Serious Organised Crime Agency,23/11/2010,Salaries and Allowances -Seconded Officers,Corporate Services,REVENUE FINANCE BANKING SERVIC,58001,"34,562.65"
Home Office,SOCA - Serious Organised Crime Agency,24/11/2010,Intangibles non-current assets,Projects,LOGICA UK LTD,58141,"52,682.30"
Home Office,SOCA - Serious Organised Crime Agency,24/11/2010,Office Equipment & Repairs,Corporate Services,CANON (UK) LTD,58142,"31,215.26"
Home Office,SOCA - Serious Organised Crime Agency,24/11/2010,Salaries and Allowances -Seconded Officers,Corporate Services,REVENUE FINANCE BANKING SERVIC,58144,"76,116.38"
Home Office,SOCA - Serious Organised Crime Agency,24/11/2010,IT Expenses,Investment Board,CAPITA BUSINESS SERVICES LTD,58190,"206,800.00"
Home Office,SOCA - Serious Organised Crime Agency,29/11/2010,Property Plant & Equipment,Investment Board,SEAT UK,58403,"91,995.45"
Home Office,SOCA - Serious Organised Crime Agency,30/11/2010,IT Expenses,Corporate Services,FCO ,58496,"528,734.72"
Home Office,SOCA - Serious Organised Crime Agency,30/11/2010,IT Expenses,Corporate Services,CAPITA BUSINESS SERVICES LTD,58499,"38,698.63"
Home Office,SOCA - Serious Organised Crime Agency,30/11/2010,Office and General Expenses,Corporate Services,OFFICE DEPOT UK LTD,58715,"33,524.09"
Home Office,SOCA - Serious Organised Crime Agency,01/12/2010,Salaries and Allowances -permanently employed,Corporate Services,BADENOCH & CLARK LIMITED,58875,"11,750.96"
Home Office,SOCA - Serious Organised Crime Agency,01/12/2010,Intangibles non-current assets,Projects,BADENOCH & CLARK LIMITED,58875,"23,141.78"
Home Office,SOCA - Serious Organised Crime Agency,01/12/2010,Operational and Communications Costs,Investment Board,SEPURA LTD,58892,"62,451.25"
Home Office,SOCA - Serious Organised Crime Agency,01/12/2010,Salaries and Allowances -permanently employed,Corporate Services,CAPITA BUSINESS SERVICES LTD,58974,"39,715.00"
Home Office,SOCA - Serious Organised Crime Agency,01/12/2010,Salaries and Allowances -permanently employed,Corporate Services,CAPITA BUSINESS SERVICES LTD,58975,"26,085.00"
Home Office,SOCA - Serious Organised Crime Agency,02/12/2010,Salaries and Allowances -permanently employed,Intervention,ADECCO ALFRED MARKS,59046,"41,657.70"
Home Office,SOCA - Serious Organised Crime Agency,02/12/2010,Salaries and Allowances -permanently employed,Enforcement,ADECCO ALFRED MARKS,59046,"9,373.25"
Home Office,SOCA - Serious Organised Crime Agency,02/12/2010,Salaries and Allowances -permanently employed,Intelligence,ADECCO ALFRED MARKS,59046,"3,925.91"
Home Office,SOCA - Serious Organised Crime Agency,02/12/2010,Salaries and Allowances -permanently employed,Corporate Services,ADECCO ALFRED MARKS,59046,"31,280.24"
Home Office,SOCA - Serious Organised Crime Agency,02/12/2010,Salaries and Allowances -permanently employed,Central & Hosted Services,ADECCO ALFRED MARKS,59046,"2,798.20"
Home Office,SOCA - Serious Organised Crime Agency,02/12/2010,Salaries and Allowances -permanently employed,CEOP,ADECCO ALFRED MARKS,59046,"16,873.49"
Home Office,SOCA - Serious Organised Crime Agency,02/12/2010,Salaries and Allowances -permanently employed,Investment Board,ADECCO ALFRED MARKS,59046,"7,167.44"
Home Office,SOCA - Serious Organised Crime Agency,06/12/2010,Professional Services and Fees,Investment Board,DELOITTE MCS,59137,"35,777.58"
Home Office,SOCA - Serious Organised Crime Agency,06/12/2010,Professional Services and Fees,Investment Board,DELOITTE MCS,59138,"45,535.95"
Home Office,SOCA - Serious Organised Crime Agency,06/12/2010,Operational and Communications Costs,Enforcement,METROPOLITAN POLICE SERVICE,59152,"28,252.13"
Home Office,SOCA - Serious Organised Crime Agency,07/12/2010,IT Expenses,Corporate Services,CAPITA BUSINESS SERVICES LTD,59212,"54,653.95"
Home Office,SOCA - Serious Organised Crime Agency,08/12/2010,IT Expenses,Corporate Services,BT ,59269,"26,789.58"
Home Office,SOCA - Serious Organised Crime Agency,08/12/2010,Premises,Corporate Services,OCS GROUP,59372,"173,237.49"
Home Office,SOCA - Serious Organised Crime Agency,09/12/2010,"Accommodation, Subsistence & General Expenses",CEOP,LINCOLN POLICE AUTH,59550,"8,016.00"
Home Office,SOCA - Serious Organised Crime Agency,09/12/2010,Salaries and Allowances -Seconded Officers,CEOP,LINCOLN POLICE AUTH,59550,"16,518.60"
Home Office,SOCA - Serious Organised Crime Agency,09/12/2010,Salaries and Allowances -permanently employed,CEOP,LINCOLN POLICE AUTH,59550,595.04
Home Office,SOCA - Serious Organised Crime Agency,10/12/2010,Intangibles non-current assets,Projects,LOGICA UK LTD,59587,"47,943.53"
Home Office,SOCA - Serious Organised Crime Agency,14/12/2010,PFI Contract Charges,Enforcement,SERCO,59722,"4,154.22"
Home Office,SOCA - Serious Organised Crime Agency,14/12/2010,IT Expenses,Corporate Services,SERCO,59722,"8,124.19"
Home Office,SOCA - Serious Organised Crime Agency,14/12/2010,PFI Contract Charges,Corporate Services,SERCO,59722,"1,685,750.90"
Home Office,SOCA - Serious Organised Crime Agency,14/12/2010,PFI Contract Charges,CEOP,SERCO,59722,"30,768.95"
Home Office,SOCA - Serious Organised Crime Agency,14/12/2010,IT Expenses,Investment Board,SERCO,59722,"9,584.03"
Home Office,SOCA - Serious Organised Crime Agency,14/12/2010,Intangibles non-current assets,Investment Board,SERCO,59722,722.3
Home Office,SOCA - Serious Organised Crime Agency,14/12/2010,PFI Contract Charges,Investment Board,SERCO,59722,"129,863.06"
Home Office,SOCA - Serious Organised Crime Agency,14/12/2010,Property Plant & Equipment,Investment Board,SERCO,59722,"2,481.34"
Home Office,SOCA - Serious Organised Crime Agency,14/12/2010,Professional Services and Fees,Central & Hosted Services,RSM TENON,59835,"25,850.00"
Home Office,SOCA - Serious Organised Crime Agency,14/12/2010,Office and General Expenses,Corporate Services,ROYAL MAIL,59836,"29,288.96"
Home Office,SOCA - Serious Organised Crime Agency,14/12/2010,IT Expenses,Corporate Services,SERCO,59837,"162,529.69"
Home Office,SOCA - Serious Organised Crime Agency,14/12/2010,PFI Contract Charges,Corporate Services,SERCO,59839,"50,658.34"
Home Office,SOCA - Serious Organised Crime Agency,14/12/2010,IT Expenses,Corporate Services,SERCO,59840,"122,808.42"
Home Office,SOCA - Serious Organised Crime Agency,14/12/2010,IT Expenses,Corporate Services,CAPITA BUSINESS SERVICES LTD,59844,"273,269.76"
Home Office,SOCA - Serious Organised Crime Agency,15/12/2010,Property Plant & Equipment,Investment Board,VOLVO CAR UK LTD,59906,"31,922.50"
Home Office,SOCA - Serious Organised Crime Agency,16/12/2010,Property Plant & Equipment,Investment Board,SERCO,59964,"41,669.03"
Home Office,SOCA - Serious Organised Crime Agency,16/12/2010,Property Plant & Equipment,Investment Board,WATES INTERIORS LTD,60163,"455,900.00"
Home Office,SOCA - Serious Organised Crime Agency,16/12/2010,Office Equipment & Repairs,Corporate Services,CANON (UK) LTD,60164,"51,884.52"
Home Office,SOCA - Serious Organised Crime Agency,16/12/2010,Premises,Corporate Services,KIER BUILDING SERVICES,60170,"73,394.71"
Home Office,SOCA - Serious Organised Crime Agency,16/12/2010,IT Expenses,Investment Board,CAPITA BUSINESS SERVICES LTD,60182,"115,089.84"
Home Office,SOCA - Serious Organised Crime Agency,16/12/2010,Forensic Fees,Intelligence,FORENSIC SCIENCE SERVICE,60185,"50,014.83"
Home Office,SOCA - Serious Organised Crime Agency,16/12/2010,IT Expenses,Corporate Services,CAPITA BUSINESS SERVICES LTD,60193,"82,250.00"
Home Office,SOCA - Serious Organised Crime Agency,16/12/2010,"Accommodation, Subsistence & General Expenses",CEOP,SERCO,60212,"47,416.70"
Home Office,SOCA - Serious Organised Crime Agency,17/12/2010,Salaries and Allowances -permanently employed,Intervention,ADECCO ALFRED MARKS,60330,"30,699.09"
Home Office,SOCA - Serious Organised Crime Agency,17/12/2010,Salaries and Allowances -permanently employed,Enforcement,ADECCO ALFRED MARKS,60330,"7,688.79"
Home Office,SOCA - Serious Organised Crime Agency,17/12/2010,Salaries and Allowances -permanently employed,Intelligence,ADECCO ALFRED MARKS,60330,"3,534.67"
Home Office,SOCA - Serious Organised Crime Agency,17/12/2010,Salaries and Allowances -permanently employed,Corporate Services,ADECCO ALFRED MARKS,60330,"35,372.22"
Home Office,SOCA - Serious Organised Crime Agency,17/12/2010,Salaries and Allowances -permanently employed,Central & Hosted Services,ADECCO ALFRED MARKS,60330,"5,611.26"
Home Office,SOCA - Serious Organised Crime Agency,17/12/2010,Salaries and Allowances -permanently employed,CEOP,ADECCO ALFRED MARKS,60330,"11,706.88"
Home Office,SOCA - Serious Organised Crime Agency,17/12/2010,Salaries and Allowances -permanently employed,Investment Board,ADECCO ALFRED MARKS,60330,"7,968.77"
Home Office,CRB - Criminal Records Bureau,16/12/2010,Police costs per check,CRB - Criminal Records Bureau,Bedfordshire Police,15365  1,"25,915.17"
Home Office,CRB - Criminal Records Bureau,16/12/2010,Police costs per check,CRB - Criminal Records Bureau,Cambridgeshire Police Auth,15365  3,"60,594.48"
Home Office,CRB - Criminal Records Bureau,16/12/2010,Police costs per check,CRB - Criminal Records Bureau,Cumbria Police Authority Main,15365  7,"25,215.71"
Home Office,CRB - Criminal Records Bureau,10/12/2010,Police costs per check,CRB - Criminal Records Bureau,Derbyshire Police Authority,15314  5,"92,479.38"
Home Office,CRB - Criminal Records Bureau,13/12/2010,Police costs per check,CRB - Criminal Records Bureau,Derbyshire Police Authority,15320  5,"77,098.46"
Home Office,CRB - Criminal Records Bureau,16/12/2010,Police costs per check,CRB - Criminal Records Bureau,Derbyshire Police Authority,15365  8,"74,428.15"
Home Office,CRB - Criminal Records Bureau,16/12/2010,Police costs per check,CRB - Criminal Records Bureau,Devon & Cornwall Police Author,15365  9,"37,112.46"
Home Office,CRB - Criminal Records Bureau,16/12/2010,Police costs per check,CRB - Criminal Records Bureau,Northants Police Authority,15365  14,"35,322.90"
Home Office,CRB - Criminal Records Bureau,16/12/2010,Police costs per check,CRB - Criminal Records Bureau,Norfolk Police Authority,15365  15,"37,053.64"
Home Office,CRB - Criminal Records Bureau,16/12/2010,Police costs per check,CRB - Criminal Records Bureau,Northumbria Police,15365  16,"43,516.47"
Home Office,CRB - Criminal Records Bureau,16/12/2010,Police costs per check,CRB - Criminal Records Bureau,Disclosure Scotland,15365  18,"28,880.19"
Home Office,CRB - Criminal Records Bureau,16/12/2010,Police costs per check,CRB - Criminal Records Bureau,South Yorkshire Police,15365  19,"39,807.71"
Home Office,CRB - Criminal Records Bureau,16/12/2010,Police costs per check,CRB - Criminal Records Bureau,Staffordshire Police Authority,15365  20,"33,601.22"
Home Office,CRB - Criminal Records Bureau,16/12/2010,Police costs per check,CRB - Criminal Records Bureau,Suffolk Police Authority,15365  21,"28,176.13"
Home Office,CRB - Criminal Records Bureau,16/12/2010,Police costs per check,CRB - Criminal Records Bureau,Surrey Police Authority,15365  22,"47,633.79"
Home Office,CRB - Criminal Records Bureau,16/12/2010,Police costs per check,CRB - Criminal Records Bureau,Sussex Police,15365  23,"33,329.76"
Home Office,CRB - Criminal Records Bureau,16/12/2010,Police costs per check,CRB - Criminal Records Bureau,West Yorkshire Police,15365  24,"84,289.22"
Home Office,CRB - Criminal Records Bureau,16/12/2010,Police costs per check,CRB - Criminal Records Bureau,West Mercia Police Fund,15365  25,"37,696.32"
Home Office,CRB - Criminal Records Bureau,16/12/2010,Adelphi Ongoing Costs,CRB - Criminal Records Bureau,Home Office,15365  11,"39,249.99"
Home Office,CRB - Criminal Records Bureau,10/12/2010,Public Private Partnership contract / agreement,CRB - Criminal Records Bureau,Capita Business Services Ltd,15321  11,"280,894.12"
Home Office,CRB - Criminal Records Bureau,23/12/2010,Public Private Partnership contract / agreement,CRB - Criminal Records Bureau,Capita Business Services Ltd,15386  46,"885,881.88"
